Workbook

Sheet Plan1
B6: Se for apresentado um Aviso de Segurança dizendo que "As macros foram desabilitadas." : Clique em Opções e a seguir clicar na opção Habilitar este conteúdo.
B8: Para melhor visualização deste Painel Dashboards, em qualquer Tabela ou Gráfico, pode-se utilizar o recurso de: Pressionar a tecla Ctrl + Roda de Rolagem do mouse (Botão Scroll), ajustando para cima ou para baixo.

Sheet TD (hidden)
B1: Ano | C1: 2019
C3: Valores
B4: Mês | C4: 1ª Distribuição no TRF (A) | D4: Distribuídos por Migração (M) | E4: Distribuídos por Virtualização (V) | F4: Total Distribuídos (A+M+V) | G4: Julgados (TJI) | H4: Saldo Atual (TRAM) | I4: Tramitação Ajustada (TA) | J4: Mapa Geral Judicial do TRF2R
B5: Janeiro | C5: 3692 | D5: 0 | E5: 7 | F5: 3699 | G5: 2301 | H5: 83228 | I5: 76954 | J5: Orientações para a utilização da "Tabela Dinâmica".
B6: Eproc | C6: 1464 | D6: 0 | E6: 0 | F6: 1464 | G6: 86 | H6: 5594 | I6: 5587
B7: Apolo | C7: 2228 | D7: 0 | E7: 7 | F7: 2235 | G7: 2215 | H7: 77634 | I7: 71367 | J7: No campo de filtro "Ano" da tabela ao lado, dentre as opções:
B8: Fevereiro | C8: 3975 | D8: 0 | E8: 23 | F8: 3998 | G8: 6878 | H8: 82672 | I8: 75983
B9: Eproc | C9: 2070 | D9: 0 | E9: 0 | F9: 2070 | G9: 368 | H9: 7517 | I9: 7502 | J9: Selecione um "Ano" :
B10: Apolo | C10: 1905 | D10: 0 | E10: 23 | F10: 1928 | G10: 6510 | H10: 75155 | I10: 68481
B11: Março | C11: 2914 | D11: 0 | E11: 15 | F11: 2929 | G11: 3994 | H11: 81060 | I11: 73895
B12: Eproc | C12: 1711 | D12: 0 | E12: 0 | F12: 1711 | G12: 327 | H12: 9051 | I12: 9035
B13: Apolo | C13: 1203 | D13: 0 | E13: 15 | F13: 1218 | G13: 3667 | H13: 72009 | I13: 64860
B14: Abril | C14: 3553 | D14: 0 | E14: 15 | F14: 3568 | G14: 4867 | H14: 82691 | I14: 75495
B15: Eproc | C15: 2261 | D15: 0 | E15: 0 | F15: 2261 | G15: 540 | H15: 11181 | I15: 11162
B16: Apolo | C16: 1292 | D16: 0 | E16: 15 | F16: 1307 | G16: 4327 | H16: 71510 | I16: 64333
B17: Maio | C17: 4609 | D17: 0 | E17: 15 | F17: 4624 | G17: 5675 | H17: 82595 | I17: 75095
B18: Eproc | C18: 3218 | D18: 0 | E18: 0 | F18: 3218 | G18: 601 | H18: 13949 | I18: 13919
B19: Apolo | C19: 1391 | D19: 0 | E19: 15 | F19: 1406 | G19: 5074 | H19: 68646 | I19: 61176
B20: Junho | C20: 3716 | D20: 0 | E20: 9 | F20: 3725 | G20: 6077 | H20: 83074 | I20: 75409
B21: Eproc | C21: 2876 | D21: 0 | E21: 0 | F21: 2876 | G21: 822 | H21: 16463 | I21: 16417
B22: Apolo | C22: 840 | D22: 0 | E22: 9 | F22: 849 | G22: 5255 | H22: 66611 | I22: 58992
B23: Julho | C23: 4705 | D23: 0 | E23: 11 | F23: 4716 | G23: 6602 | H23: 83762 | I23: 75599
B24: Eproc | C24: 3792 | D24: 0 | E24: 0 | F24: 3792 | G24: 1590 | H24: 19629 | I24: 19571 | J24: Nos campos de coluna "Mês e Base" da tabela ao lado, dentre as opções:
B25: Apolo | C25: 913 | D25: 0 | E25: 11 | F25: 924 | G25: 5012 | H25: 64133 | I25: 56028
B26: Agosto | C26: 4667 | D26: 0 | E26: 23 | F26: 4690 | G26: 5867 | H26: 83971 | I26: 75342 | J26: Selecione um "Mês" : | M26: Selecione uma "Base de Dados" :
B27: Eproc | C27: 3935 | D27: 0 | E27: 0 | F27: 3935 | G27: 1757 | H27: 22759 | I27: 22681
B28: Apolo | C28: 732 | D28: 0 | E28: 23 | F28: 755 | G28: 4110 | H28: 61212 | I28: 52661
B29: Setembro | C29: 4597 | D29: 0 | E29: 13 | F29: 4610 | G29: 6597 | H29: 84161 | I29: 75121
B30: Eproc | C30: 4039 | D30: 0 | E30: 0 | F30: 4039 | G30: 2270 | H30: 25722 | I30: 25586
B31: Apolo | C31: 558 | D31: 0 | E31: 13 | F31: 571 | G31: 4327 | H31: 58439 | I31: 49535
B32: Outubro | C32: 4691 | D32: 0 | E32: 14 | F32: 4705 | G32: 6535 | H32: 83961 | I32: 74760
B33: Eproc | C33: 4139 | D33: 0 | E33: 0 | F33: 4139 | G33: 2992 | H33: 28482 | I33: 28257
B34: Apolo | C34: 552 | D34: 0 | E34: 14 | F34: 566 | G34: 3543 | H34: 55479 | I34: 46503
B35: Novembro | C35: 3874 | D35: 2 | E35: 17 | F35: 3893 | G35: 6407 | H35: 83911 | I35: 74078
B36: Eproc | C36: 3517 | D36: 2 | E36: 0 | F36: 3519 | G36: 2839 | H36: 30663 | I36: 30373
B37: Apolo | C37: 357 | D37: 0 | E37: 17 | F37: 374 | G37: 3568 | H37: 53248 | I37: 43705
B38: Dezembro | C38: 2880 | D38: 0 | E38: 10 | F38: 2890 | G38: 6253 | H38: 83221 | I38: 73260
B39: Eproc | C39: 2598 | D39: 0 | E39: 0 | F39: 2598 | G39: 2907 | H39: 31489 | I39: 31131
B40: Apolo | C40: 282 | D40: 0 | E40: 10 | F40: 292 | G40: 3346 | H40: 51732 | I40: 42129
B41: Total geral | C41: 47873 | D41: 2 | E41: 172 | F41: 48047 | G41: 68053 | H41: 998307 | I41: 900991 | J41: Obs. 1: (TRAM) = Tramitação de Processos no Final do Período (final do Mês).
J42: Obs. 2: (TA) Eproc e Apolo = TRAM - O (Suspensos).
B43: OBS.: Os valores poderão ser alterados, em função de modificações na base de dados, por parte do usuário. | J43: Obs. 3: (TA) Siapro = TRAM - O (Suspensos) - P (Aguardando Julg do Agravo).
B45: _ Desde DEZ/2013, o sistema processual "Apolo" está em funcionamento no Tribunal.
B46: _ Na semana de 19 a 23/03/2018, iniciou-se a Migração de TODOS os processos do sistema Siapro para o sistema Apolo.
B47: _ Desde o dia 27 de Abril de 2018, o NOVO sistema processual "Eproc" está em funcionamento no Tribunal, descontinuando o sistema Apolo.

Sheet PaMT (hidden)
B5: Ano | E5: Tipo Processo | G5: Judicial
J6: Total de Distribuídos nas Bases de Dados
D7: (*) 1ª Distribuição no TRF | F7: (*) Distribuídos para o Apolo (Origem: Sistema Siapro)
C8: Base de Dados do Processo | D8: (A) | E8: Acum. Mensal | F8: Por Migração (M) | G8: Acum. Mensal | H8: Por Virtualização (V) | I8: Acum. Mensal | J8: (A)+(M)+(V) | K8: Acum. Mensal | L8: Julgados (TJI) | M8: Acum. Mensal | N8: Saldo Atual (TRAM) | O8: % Variação Mensal da Tramitação | P8: (*) Tram. Ajustada (TA)
B9: Mês
B10: Dezembro | C10: Siapro | D10: =VLOOKUP(TA!$C$20&$B10,Dados!$A$2:$K$171,4,0) -> 1256 | E10: =VLOOKUP(TA!$C$20&$B10,Dados!$A$2:$L$171,12,0) -> 4244 | J10: =D10+F10+H10 -> 1256 | K10: 4244 | L10: =VLOOKUP(TA!$C$20&$B10,Dados!$A$2:$K$171,5,0) -> 254 | M10: =VLOOKUP(TA!$C$20&$B10,Dados!$A$2:$M$171,13,0) -> 480 | N10: =VLOOKUP(TA!$C$20&$B10,Dados!$A$2:$K$171,6,0) -> 4154 | P10: =VLOOKUP(TA!$C$20&$B10,Dados!$A$2:$K$171,7,0) -> 4149
C11: Apolo | D11: =VLOOKUP(TA!$C$20&$B10,Dados!$A$2:$K$171,8,0) -> 2099 | E11: =VLOOKUP(TA!$C$20&$B10,Dados!$A$2:$N$171,14,0) -> 36881 | F11: =VLOOKUP(TA!$C$20&$B10,Dados!$A$2:$P$171,16,0) -> 0 | G11: =VLOOKUP(TA!$C$20&$B10,Dados!$A$2:$Q$171,17,0) -> 7984 | H11: =VLOOKUP(TA!$C$20&$B10,Dados!$A$2:$R$171,18,0) -> 14 | I11: =VLOOKUP(TA!$C$20&$B10,Dados!$A$2:$S$171,19,0) -> 540 | J11: 2113 | K11: 45405 | L11: =VLOOKUP(TA!$C$20&$B10,Dados!$A$2:$K$171,9,0) -> 4177 | M11: =VLOOKUP(TA!$C$20&$B10,Dados!$A$2:$O$171,15,0) -> 64352 | N11: =VLOOKUP(TA!$C$20&$B10,Dados!$A$2:$K$171,10,0) -> 77849 | P11: =VLOOKUP(TA!$C$20&$B10,Dados!$A$2:$K$171,11,0) -> 71773
B12: Total | D12: =D10+D11 -> 3355 | E12: 41125 | F12: 0 | G12: 7984 | H12: 14 | I12: 540 | J12: 3369 | K12: 49649 | L12: =L10+L11 -> 4431 | M12: =M10+M11 -> 64832 | N12: =N10+N11 -> 82003 | P12: =P10+P11 -> 75922
B13: Janeiro | C13: =TA!$D$20 -> Eproc | D13: =VLOOKUP(TA!$A$20&$B13,Dados!$A$2:$K$171,4,0) -> 1464 | E13: =VLOOKUP(TA!$A$20&$B13,Dados!$A$2:$L$171,12,0) -> 1464 | J13: =D13+F13+H13 -> 1464 | K13: =E13+G13+I13 -> 1464 | L13: =VLOOKUP(TA!$A$20&$B13,Dados!$A$2:$K$171,5,0) -> 86 | M13: =VLOOKUP(TA!$A$20&$B13,Dados!$A$2:$M$171,13,0) -> 86 | N13: =VLOOKUP(TA!$A$20&$B13,Dados!$A$2:$K$171,6,0) -> 5594 | O13: =IF($N13=0,"",($N13/$N10)-1) -> 0.3466538276 | P13: =VLOOKUP(TA!$A$20&$B13,Dados!$A$2:$K$171,7,0) -> 5587 | AJ13: S | AO13: e
C14: Apolo | D14: =VLOOKUP(TA!$A$20&$B13,Dados!$A$2:$K$171,8,0) -> 2228 | E14: =VLOOKUP(TA!$A$20&$B13,Dados!$A$2:$N$171,14,0) -> 2228 | F14: =VLOOKUP(TA!$A$20&$B13,Dados!$A$2:$P$171,16,0) -> 0 | G14: =VLOOKUP(TA!$A$20&$B13,Dados!$A$2:$Q$171,17,0) -> 0 | H14: =VLOOKUP(TA!$A$20&$B13,Dados!$A$2:$R$171,18,0) -> 7 | I14: =VLOOKUP(TA!$A$20&$B13,Dados!$A$2:$S$171,19,0) -> 7 | J14: =D14+F14+H14 -> 2235 | K14: =E14+G14+I14 -> 2235 | L14: =VLOOKUP(TA!$A$20&$B13,Dados!$A$2:$K$171,9,0) -> 2215 | M14: =VLOOKUP(TA!$A$20&$B13,Dados!$A$2:$O$171,15,0) -> 2215 | N14: =VLOOKUP(TA!$A$20&$B13,Dados!$A$2:$K$171,10,0) -> 77634 | O14: =IF($N11=0,"",($N14/$N11)-1) -> -0.002761756734 | P14: =VLOOKUP(TA!$A$20&$B13,Dados!$A$2:$K$171,11,0) -> 71367 | AJ14: 0 | AK14: 4jd | AO14: 0 | AP14: 1
B15: Total | D15: =D13+D14 -> 3692 | E15: =E13+E14 -> 3692 | F15: 0 | G15: 0 | H15: 7 | I15: 7 | J15: =D15+F15+H15 -> 3699 | K15: =E15+G15+I15 -> 3699 | L15: =L13+L14 -> 2301 | M15: =M13+M14 -> 2301 | N15: =N13+N14 -> 83228 | O15: =IF($N15=0,"",($N15/$N12)-1) -> 0.01493847786 | P15: =P13+P14 -> 76954 | AJ15: 0 | AO15: 0
B16: Fevereiro | C16: =TA!$D$20 -> Eproc | D16: =VLOOKUP(TA!$A$20&$B16,Dados!$A$2:$K$171,4,0) -> 2070 | E16: =VLOOKUP(TA!$A$20&$B16,Dados!$A$2:$L$171,12,0) -> 3534 | J16: 2070 | K16: =E16+G16+I16 -> 3534 | L16: =VLOOKUP(TA!$A$20&$B16,Dados!$A$2:$K$171,5,0) -> 368 | M16: =VLOOKUP(TA!$A$20&$B16,Dados!$A$2:$M$171,13,0) -> 454 | N16: =VLOOKUP(TA!$A$20&$B16,Dados!$A$2:$K$171,6,0) -> 7517 | O16: =IF($N16=0,"",($N16/$N13)-1) -> 0.3437611727 | P16: =VLOOKUP(TA!$A$20&$B16,Dados!$A$2:$K$171,7,0) -> 7502 | AJ16: 0 | AO16: 0
C17: Apolo | D17: =VLOOKUP(TA!$A$20&$B16,Dados!$A$2:$K$171,8,0) -> 1905 | E17: =VLOOKUP(TA!$A$20&$B16,Dados!$A$2:$N$171,14,0) -> 4133 | F17: =VLOOKUP(TA!$A$20&$B16,Dados!$A$2:$P$171,16,0) -> 0 | G17: =VLOOKUP(TA!$A$20&$B16,Dados!$A$2:$Q$171,17,0) -> 0 | H17: =VLOOKUP(TA!$A$20&$B16,Dados!$A$2:$R$171,18,0) -> 23 | I17: =VLOOKUP(TA!$A$20&$B16,Dados!$A$2:$S$171,19,0) -> 30 | J17: 1928 | K17: 4163 | L17: =VLOOKUP(TA!$A$20&$B16,Dados!$A$2:$K$171,9,0) -> 6510 | M17: =VLOOKUP(TA!$A$20&$B16,Dados!$A$2:$O$171,15,0) -> 8725 | N17: =VLOOKUP(TA!$A$20&$B16,Dados!$A$2:$K$171,10,0) -> 75155 | O17: =IF($N17=0,"",IF($N14=0,"",($N17/$N14)-1)) -> -0.03193188551 | P17: =VLOOKUP(TA!$A$20&$B16,Dados!$A$2:$K$171,11,0) -> 68481 | AJ17: 0 | AO17: 0
B18: Total | D18: =D16+D17 -> 3975 | E18: =E16+E17 -> 7667 | F18: 0 | G18: 0 | H18: 23 | I18: 30 | J18: 3998 | K18: 7697 | L18: =L16+L17 -> 6878 | M18: =M16+M17 -> 9179 | N18: =N16+N17 -> 82672 | O18: =IF($N18=0,"",($N18/$N15)-1) -> -0.006680444081 | P18: =P16+P17 -> 75983 | AJ18: 0 | AO18: 0
B19: Março | C19: =TA!$D$20 -> Eproc | D19: =VLOOKUP(TA!$A$20&$B19,Dados!$A$2:$K$171,4,0) -> 1711 | E19: =VLOOKUP(TA!$A$20&$B19,Dados!$A$2:$L$171,12,0) -> 5245 | J19: 1711 | K19: 5245 | L19: =VLOOKUP(TA!$A$20&$B19,Dados!$A$2:$K$171,5,0) -> 327 | M19: =VLOOKUP(TA!$A$20&$B19,Dados!$A$2:$M$171,13,0) -> 781 | N19: =VLOOKUP(TA!$A$20&$B19,Dados!$A$2:$K$171,6,0) -> 9051 | O19: =IF($N19=0,"",($N19/$N16)-1) -> 0.2040707729 | P19: =VLOOKUP(TA!$A$20&$B19,Dados!$A$2:$K$171,7,0) -> 9035 | AJ19: 0 | AO19: 0
C20: Apolo | D20: =VLOOKUP(TA!$A$20&$B19,Dados!$A$2:$K$171,8,0) -> 1203 | E20: =VLOOKUP(TA!$A$20&$B19,Dados!$A$2:$N$171,14,0) -> 5336 | F20: =VLOOKUP(TA!$A$20&$B19,Dados!$A$2:$P$171,16,0) -> 0 | G20: =VLOOKUP(TA!$A$20&$B19,Dados!$A$2:$Q$171,17,0) -> 0 | H20: =VLOOKUP(TA!$A$20&$B19,Dados!$A$2:$R$171,18,0) -> 15 | I20: =VLOOKUP(TA!$A$20&$B19,Dados!$A$2:$S$171,19,0) -> 45 | J20: 1218 | K20: 5381 | L20: =VLOOKUP(TA!$A$20&$B19,Dados!$A$2:$K$171,9,0) -> 3667 | M20: =VLOOKUP(TA!$A$20&$B19,Dados!$A$2:$O$171,15,0) -> 12392 | N20: =VLOOKUP(TA!$A$20&$B19,Dados!$A$2:$K$171,10,0) -> 72009 | O20: =IF($N20=0,"",IF($N17=0,"",($N20/$N17)-1)) -> -0.04186015568 | P20: =VLOOKUP(TA!$A$20&$B19,Dados!$A$2:$K$171,11,0) -> 64860 | AJ20: 0
B21: Total | D21: =D19+D20 -> 2914 | E21: =E19+E20 -> 10581 | F21: 0 | G21: 0 | H21: 15 | I21: 45 | J21: 2929 | K21: 10626 | L21: =L19+L20 -> 3994 | M21: =M19+M20 -> 13173 | N21: =N19+N20 -> 81060 | O21: =IF($N21=0,"",($N21/$N18)-1) -> -0.01949874202 | P21: =P19+P20 -> 73895 | AJ21: 0
B22: Abril | C22: =TA!$D$19 -> Eproc | D22: =VLOOKUP(TA!$A$20&$B22,Dados!$A$2:$K$171,4,0) -> 2261 | E22: =VLOOKUP(TA!$A$20&$B22,Dados!$A$2:$L$171,12,0) -> 7506 | J22: 2261 | K22: 7506 | L22: =VLOOKUP(TA!$A$20&$B22,Dados!$A$2:$K$171,5,0) -> 540 | M22: =VLOOKUP(TA!$A$20&$B22,Dados!$A$2:$M$171,13,0) -> 1321 | N22: =VLOOKUP(TA!$A$20&$B22,Dados!$A$2:$K$171,6,0) -> 11181 | O22: =IF($N22=0,"",($N22/$N19)-1) -> 0.2353331124 | P22: =VLOOKUP(TA!$A$20&$B22,Dados!$A$2:$K$171,7,0) -> 11162 | AJ22: 0
C23: Apolo | D23: =VLOOKUP(TA!$A$20&$B22,Dados!$A$2:$K$171,8,0) -> 1292 | E23: =VLOOKUP(TA!$A$20&$B22,Dados!$A$2:$N$171,14,0) -> 6628 | F23: =VLOOKUP(TA!$A$20&$B22,Dados!$A$2:$P$171,16,0) -> 0 | G23: =VLOOKUP(TA!$A$20&$B22,Dados!$A$2:$Q$171,17,0) -> 0 | H23: =VLOOKUP(TA!$A$20&$B22,Dados!$A$2:$R$171,18,0) -> 15 | I23: =VLOOKUP(TA!$A$20&$B22,Dados!$A$2:$S$171,19,0) -> 60 | J23: 1307 | K23: 6688 | L23: =VLOOKUP(TA!$A$20&$B22,Dados!$A$2:$K$171,9,0) -> 4327 | M23: =VLOOKUP(TA!$A$20&$B22,Dados!$A$2:$O$171,15,0) -> 16719 | N23: =VLOOKUP(TA!$A$20&$B22,Dados!$A$2:$K$171,10,0) -> 71510 | O23: =IF($N23=0,"",IF($N20=0,"",($N23/$N20)-1)) -> -0.006929689344 | P23: =VLOOKUP(TA!$A$20&$B22,Dados!$A$2:$K$171,11,0) -> 64333
B24: Total | D24: =D22+D23 -> 3553 | E24: =E22+E23 -> 14134 | F24: 0 | G24: 0 | H24: 15 | I24: 60 | J24: 3568 | K24: =E24+G24+I24 -> 14194 | L24: =L22+L23 -> 4867 | M24: =M22+M23 -> 18040 | N24: =N22+N23 -> 82691 | O24: =IF($N24=0,"",($N24/$N21)-1) -> 0.0201208981 | P24: =P22+P23 -> 75495
B25: Maio | C25: =TA!$D$19 -> Eproc | D25: =VLOOKUP(TA!$A$20&$B25,Dados!$A$2:$K$171,4,0) -> 3218 | E25: =VLOOKUP(TA!$A$20&$B25,Dados!$A$2:$L$171,12,0) -> 10724 | J25: 3218 | K25: 10724 | L25: =VLOOKUP(TA!$A$20&$B25,Dados!$A$2:$K$171,5,0) -> 601 | M25: =VLOOKUP(TA!$A$20&$B25,Dados!$A$2:$M$171,13,0) -> 1922 | N25: =VLOOKUP(TA!$A$20&$B25,Dados!$A$2:$K$171,6,0) -> 13949 | O25: =IF($N25=0,"",IF($N22=0,"100,00%",($N25/$N22)-1)) -> 0.2475628298 | P25: =VLOOKUP(TA!$A$20&$B25,Dados!$A$2:$K$171,7,0) -> 13919
C26: Apolo | D26: =VLOOKUP(TA!$A$20&$B25,Dados!$A$2:$K$171,8,0) -> 1391 | E26: =VLOOKUP(TA!$A$20&$B25,Dados!$A$2:$N$171,14,0) -> 8019 | F26: =VLOOKUP(TA!$A$20&$B25,Dados!$A$2:$P$171,16,0) -> 0 | G26: =VLOOKUP(TA!$A$20&$B25,Dados!$A$2:$Q$171,17,0) -> 0 | H26: =VLOOKUP(TA!$A$20&$B25,Dados!$A$2:$R$171,18,0) -> 15 | I26: =VLOOKUP(TA!$A$20&$B25,Dados!$A$2:$S$171,19,0) -> 75 | J26: 1406 | K26: 8094 | L26: =VLOOKUP(TA!$A$20&$B25,Dados!$A$2:$K$171,9,0) -> 5074 | M26: =VLOOKUP(TA!$A$20&$B25,Dados!$A$2:$O$171,15,0) -> 21793 | N26: =VLOOKUP(TA!$A$20&$B25,Dados!$A$2:$K$171,10,0) -> 68646 | O26: =IF($N26=0,"",IF($N23=0,"",($N26/$N23)-1)) -> -0.04005034261 | P26: =VLOOKUP(TA!$A$20&$B25,Dados!$A$2:$K$171,11,0) -> 61176
B27: Total | D27: =D25+D26 -> 4609 | E27: 18743 | F27: 0 | G27: 0 | H27: 15 | I27: 75 | J27: 4624 | K27: 18818 | L27: =L25+L26 -> 5675 | M27: =M25+M26 -> 23715 | N27: =N25+N26 -> 82595 | O27: =IF($N27=0,"",($N27/$N24)-1) -> -0.001160948592 | P27: =P25+P26 -> 75095 | AJ27: NÃO POSSO OCULTAR ESSAS COLUNAS
B28: Junho | C28: =TA!$D$19 -> Eproc | D28: =VLOOKUP(TA!$A$20&$B28,Dados!$A$2:$K$171,4,0) -> 2876 | E28: =VLOOKUP(TA!$A$20&$B28,Dados!$A$2:$L$171,12,0) -> 13600 | J28: 2876 | K28: 13600 | L28: =VLOOKUP(TA!$A$20&$B28,Dados!$A$2:$K$171,5,0) -> 822 | M28: =VLOOKUP(TA!$A$20&$B28,Dados!$A$2:$M$171,13,0) -> 2744 | N28: =VLOOKUP(TA!$A$20&$B28,Dados!$A$2:$K$171,6,0) -> 16463 | O28: =IF($N28=0,"",($N28/$N25)-1) -> 0.1802279733 | P28: =VLOOKUP(TA!$A$20&$B28,Dados!$A$2:$K$171,7,0) -> 16417
C29: Apolo | D29: =VLOOKUP(TA!$A$20&$B28,Dados!$A$2:$K$171,8,0) -> 840 | E29: =VLOOKUP(TA!$A$20&$B28,Dados!$A$2:$N$171,14,0) -> 8859 | F29: =VLOOKUP(TA!$A$20&$B28,Dados!$A$2:$P$171,16,0) -> 0 | G29: =VLOOKUP(TA!$A$20&$B28,Dados!$A$2:$Q$171,17,0) -> 0 | H29: =VLOOKUP(TA!$A$20&$B28,Dados!$A$2:$R$171,18,0) -> 9 | I29: =VLOOKUP(TA!$A$20&$B28,Dados!$A$2:$S$171,19,0) -> 84 | J29: 849 | K29: 8943 | L29: =VLOOKUP(TA!$A$20&$B28,Dados!$A$2:$K$171,9,0) -> 5255 | M29: =VLOOKUP(TA!$A$20&$B28,Dados!$A$2:$O$171,15,0) -> 27048 | N29: =VLOOKUP(TA!$A$20&$B28,Dados!$A$2:$K$171,10,0) -> 66611 | O29: -0.02964484456 | P29: =VLOOKUP(TA!$A$20&$B28,Dados!$A$2:$K$171,11,0) -> 58992
B30: Total | D30: =D28+D29 -> 3716 | E30: 22459 | F30: 0 | G30: 0 | H30: 9 | I30: 84 | J30: 3725 | K30: 22543 | L30: =L28+L29 -> 6077 | M30: =M28+M29 -> 29792 | N30: =N28+N29 -> 83074 | O30: 0.005799382529 | P30: =P28+P29 -> 75409
B31: Julho | C31: =TA!$D$19 -> Eproc | D31: =VLOOKUP(TA!$A$20&$B31,Dados!$A$2:$K$171,4,0) -> 3792 | E31: =VLOOKUP(TA!$A$20&$B31,Dados!$A$2:$L$171,12,0) -> 17392 | J31: 3792 | K31: 17392 | L31: =VLOOKUP(TA!$A$20&$B31,Dados!$A$2:$K$171,5,0) -> 1590 | M31: =VLOOKUP(TA!$A$20&$B31,Dados!$A$2:$M$171,13,0) -> 4334 | N31: =VLOOKUP(TA!$A$20&$B31,Dados!$A$2:$K$171,6,0) -> 19629 | O31: 0.1923100285 | P31: =VLOOKUP(TA!$A$20&$B31,Dados!$A$2:$K$171,7,0) -> 19571
C32: Apolo | D32: =VLOOKUP(TA!$A$20&$B31,Dados!$A$2:$K$171,8,0) -> 913 | E32: =VLOOKUP(TA!$A$20&$B31,Dados!$A$2:$N$171,14,0) -> 9772 | F32: =VLOOKUP(TA!$A$20&$B31,Dados!$A$2:$P$171,16,0) -> 0 | G32: =VLOOKUP(TA!$A$20&$B31,Dados!$A$2:$Q$171,17,0) -> 0 | H32: =VLOOKUP(TA!$A$20&$B31,Dados!$A$2:$R$171,18,0) -> 11 | I32: =VLOOKUP(TA!$A$20&$B31,Dados!$A$2:$S$171,19,0) -> 95 | J32: 924 | K32: 9867 | L32: =VLOOKUP(TA!$A$20&$B31,Dados!$A$2:$K$171,9,0) -> 5012 | M32: =VLOOKUP(TA!$A$20&$B31,Dados!$A$2:$O$171,15,0) -> 32060 | N32: =VLOOKUP(TA!$A$20&$B31,Dados!$A$2:$K$171,10,0) -> 64133 | O32: -0.03720106289 | P32: =VLOOKUP(TA!$A$20&$B31,Dados!$A$2:$K$171,11,0) -> 56028
B33: Total | D33: =D31+D32 -> 4705 | E33: 27164 | F33: 0 | G33: 0 | H33: 11 | I33: 95 | J33: 4716 | K33: 27259 | L33: =L31+L32 -> 6602 | M33: =M31+M32 -> 36394 | N33: =N31+N32 -> 83762 | O33: 0.008281772877 | P33: =P31+P32 -> 75599
B34: Agosto | C34: =TA!$D$19 -> Eproc | D34: =VLOOKUP(TA!$A$20&$B34,Dados!$A$2:$K$171,4,0) -> 3935 | E34: =VLOOKUP(TA!$A$20&$B34,Dados!$A$2:$L$171,12,0) -> 21327 | J34: 3935 | K34: 21327 | L34: =VLOOKUP(TA!$A$20&$B34,Dados!$A$2:$K$171,5,0) -> 1757 | M34: =VLOOKUP(TA!$A$20&$B34,Dados!$A$2:$M$171,13,0) -> 6091 | N34: =VLOOKUP(TA!$A$20&$B34,Dados!$A$2:$K$171,6,0) -> 22759 | O34: 0.1594579449 | P34: =VLOOKUP(TA!$A$20&$B34,Dados!$A$2:$K$171,7,0) -> 22681
C35: Apolo | D35: =VLOOKUP(TA!$A$20&$B34,Dados!$A$2:$K$171,8,0) -> 732 | E35: =VLOOKUP(TA!$A$20&$B34,Dados!$A$2:$N$171,14,0) -> 10504 | F35: =VLOOKUP(TA!$A$20&$B34,Dados!$A$2:$P$171,16,0) -> 0 | G35: =VLOOKUP(TA!$A$20&$B34,Dados!$A$2:$Q$171,17,0) -> 0 | H35: =VLOOKUP(TA!$A$20&$B34,Dados!$A$2:$R$171,18,0) -> 23 | I35: =VLOOKUP(TA!$A$20&$B34,Dados!$A$2:$S$171,19,0) -> 118 | J35: 755 | K35: 10622 | L35: =VLOOKUP(TA!$A$20&$B34,Dados!$A$2:$K$171,9,0) -> 4110 | M35: =VLOOKUP(TA!$A$20&$B34,Dados!$A$2:$O$171,15,0) -> 36170 | N35: =VLOOKUP(TA!$A$20&$B34,Dados!$A$2:$K$171,10,0) -> 61212 | O35: -0.04554597477 | P35: =VLOOKUP(TA!$A$20&$B34,Dados!$A$2:$K$171,11,0) -> 52661
B36: Total | D36: =D34+D35 -> 4667 | E36: 31831 | F36: 0 | G36: 0 | H36: 23 | I36: 118 | J36: 4690 | K36: 31949 | L36: =L34+L35 -> 5867 | M36: =M34+M35 -> 42261 | N36: =N34+N35 -> 83971 | O36: 0.002495164872 | P36: =P34+P35 -> 75342
B37: Setembro | C37: =TA!$D$19 -> Eproc | D37: =VLOOKUP(TA!$A$20&$B37,Dados!$A$2:$K$171,4,0) -> 4039 | E37: =VLOOKUP(TA!$A$20&$B37,Dados!$A$2:$L$171,12,0) -> 25366 | J37: 4039 | K37: =E37+G37+I37 -> 25366 | L37: =VLOOKUP(TA!$A$20&$B37,Dados!$A$2:$K$171,5,0) -> 2270 | M37: =VLOOKUP(TA!$A$20&$B37,Dados!$A$2:$M$171,13,0) -> 8361 | N37: =VLOOKUP(TA!$A$20&$B37,Dados!$A$2:$K$171,6,0) -> 25722 | O37: 0.1301902544 | P37: =VLOOKUP(TA!$A$20&$B37,Dados!$A$2:$K$171,7,0) -> 25586
C38: Apolo | D38: =VLOOKUP(TA!$A$20&$B37,Dados!$A$2:$K$171,8,0) -> 558 | E38: =VLOOKUP(TA!$A$20&$B37,Dados!$A$2:$N$171,14,0) -> 11062 | F38: =VLOOKUP(TA!$A$20&$B37,Dados!$A$2:$P$171,16,0) -> 0 | G38: =VLOOKUP(TA!$A$20&$B37,Dados!$A$2:$Q$171,17,0) -> 0 | H38: =VLOOKUP(TA!$A$20&$B37,Dados!$A$2:$R$171,18,0) -> 13 | I38: =VLOOKUP(TA!$A$20&$B37,Dados!$A$2:$S$171,19,0) -> 131 | J38: 571 | K38: 11193 | L38: =VLOOKUP(TA!$A$20&$B37,Dados!$A$2:$K$171,9,0) -> 4327 | M38: =VLOOKUP(TA!$A$20&$B37,Dados!$A$2:$O$171,15,0) -> 40497 | N38: =VLOOKUP(TA!$A$20&$B37,Dados!$A$2:$K$171,10,0) -> 58439 | O38: -0.04530157485 | P38: =VLOOKUP(TA!$A$20&$B37,Dados!$A$2:$K$171,11,0) -> 49535
B39: Total | D39: =D37+D38 -> 4597 | E39: 36428 | F39: 0 | G39: 0 | H39: 13 | I39: 131 | J39: 4610 | K39: 36559 | L39: =L37+L38 -> 6597 | M39: =M37+M38 -> 48858 | N39: =N37+N38 -> 84161 | O39: 0.002262685927 | P39: =P37+P38 -> 75121
B40: Outubro | C40: =TA!$D$19 -> Eproc | D40: =VLOOKUP(TA!$A$20&$B40,Dados!$A$2:$K$171,4,0) -> 4139 | E40: =VLOOKUP(TA!$A$20&$B40,Dados!$A$2:$L$171,12,0) -> 29505 | J40: 4139 | K40: 29505 | L40: =VLOOKUP(TA!$A$20&$B40,Dados!$A$2:$K$171,5,0) -> 2992 | M40: =VLOOKUP(TA!$A$20&$B40,Dados!$A$2:$M$171,13,0) -> 11353 | N40: =VLOOKUP(TA!$A$20&$B40,Dados!$A$2:$K$171,6,0) -> 28482 | O40: 0.107301143 | P40: =VLOOKUP(TA!$A$20&$B40,Dados!$A$2:$K$171,7,0) -> 28257
C41: Apolo | D41: =VLOOKUP(TA!$A$20&$B40,Dados!$A$2:$K$171,8,0) -> 552 | E41: =VLOOKUP(TA!$A$20&$B40,Dados!$A$2:$N$171,14,0) -> 11614 | F41: =VLOOKUP(TA!$A$20&$B40,Dados!$A$2:$P$171,16,0) -> 0 | G41: =VLOOKUP(TA!$A$20&$B40,Dados!$A$2:$Q$171,17,0) -> 0 | H41: =VLOOKUP(TA!$A$20&$B40,Dados!$A$2:$R$171,18,0) -> 14 | I41: =VLOOKUP(TA!$A$20&$B40,Dados!$A$2:$S$171,19,0) -> 145 | J41: 566 | K41: 11759 | L41: =VLOOKUP(TA!$A$20&$B40,Dados!$A$2:$K$171,9,0) -> 3543 | M41: =VLOOKUP(TA!$A$20&$B40,Dados!$A$2:$O$171,15,0) -> 44040 | N41: =VLOOKUP(TA!$A$20&$B40,Dados!$A$2:$K$171,10,0) -> 55479 | O41: -0.05065110628 | P41: =VLOOKUP(TA!$A$20&$B40,Dados!$A$2:$K$171,11,0) -> 46503
B42: Total | D42: =D40+D41 -> 4691 | E42: 41119 | F42: 0 | G42: 0 | H42: 14 | I42: 145 | J42: 4705 | K42: 41264 | L42: =L40+L41 -> 6535 | M42: =M40+M41 -> 55393 | N42: =N40+N41 -> 83961 | O42: -0.002376397619 | P42: =P40+P41 -> 74760
B43: Novembro | C43: =TA!$D$19 -> Eproc | D43: =VLOOKUP(TA!$A$20&$B43,Dados!$A$2:$K$171,4,0) -> 3517 | E43: =VLOOKUP(TA!$A$20&$B43,Dados!$A$2:$L$171,12,0) -> 33022 | F43: =VLOOKUP(TA!$A$20&$B43,Dados!$A$2:$U$171,21,0) -> 2 | G43: =VLOOKUP(TA!$A$20&$B43,Dados!$A$2:$V$171,22,0) -> 2 | J43: 3519 | K43: 33024 | L43: =VLOOKUP(TA!$A$20&$B43,Dados!$A$2:$K$171,5,0) -> 2839 | M43: =VLOOKUP(TA!$A$20&$B43,Dados!$A$2:$M$171,13,0) -> 14192 | N43: =VLOOKUP(TA!$A$20&$B43,Dados!$A$2:$K$171,6,0) -> 30663 | O43: 0.07657467874 | P43: =VLOOKUP(TA!$A$20&$B43,Dados!$A$2:$K$171,7,0) -> 30373
C44: Apolo | D44: =VLOOKUP(TA!$A$20&$B43,Dados!$A$2:$K$171,8,0) -> 357 | E44: =VLOOKUP(TA!$A$20&$B43,Dados!$A$2:$N$171,14,0) -> 11971 | F44: =VLOOKUP(TA!$A$20&$B43,Dados!$A$2:$P$171,16,0) -> 0 | G44: =VLOOKUP(TA!$A$20&$B43,Dados!$A$2:$Q$171,17,0) -> 0 | H44: =VLOOKUP(TA!$A$20&$B43,Dados!$A$2:$R$171,18,0) -> 17 | I44: =VLOOKUP(TA!$A$20&$B43,Dados!$A$2:$S$171,19,0) -> 162 | J44: 374 | K44: 12133 | L44: =VLOOKUP(TA!$A$20&$B43,Dados!$A$2:$K$171,9,0) -> 3568 | M44: =VLOOKUP(TA!$A$20&$B43,Dados!$A$2:$O$171,15,0) -> 47608 | N44: =VLOOKUP(TA!$A$20&$B43,Dados!$A$2:$K$171,10,0) -> 53248 | O44: -0.04021341408 | P44: =VLOOKUP(TA!$A$20&$B43,Dados!$A$2:$K$171,11,0) -> 43705
B45: Total | D45: =D43+D44 -> 3874 | E45: =E43+E44 -> 44993 | F45: 2 | G45: 2 | H45: 17 | I45: 162 | J45: 3893 | K45: 45157 | L45: =L43+L44 -> 6407 | M45: =M43+M44 -> 61800 | N45: =N43+N44 -> 83911 | O45: -0.0005955145842 | P45: =P43+P44 -> 74078
B46: Dezembro | C46: =TA!$D$19 -> Eproc | D46: =VLOOKUP(TA!$A$20&$B46,Dados!$A$2:$K$171,4,0) -> 2598 | E46: =VLOOKUP(TA!$A$20&$B46,Dados!$A$2:$L$171,12,0) -> 35620 | G46: =VLOOKUP(TA!$A$20&$B46,Dados!$A$2:$V$171,22,0) -> 2 | J46: 2598 | K46: 35622 | L46: =VLOOKUP(TA!$A$20&$B46,Dados!$A$2:$K$171,5,0) -> 2907 | M46: =VLOOKUP(TA!$A$20&$B46,Dados!$A$2:$M$171,13,0) -> 17099 | N46: =VLOOKUP(TA!$A$20&$B46,Dados!$A$2:$K$171,6,0) -> 31489 | O46: 0.02693800346 | P46: =VLOOKUP(TA!$A$20&$B46,Dados!$A$2:$K$171,7,0) -> 31131
C47: Apolo | D47: =VLOOKUP(TA!$A$20&$B46,Dados!$A$2:$K$171,8,0) -> 282 | E47: =VLOOKUP(TA!$A$20&$B46,Dados!$A$2:$N$171,14,0) -> 12253 | F47: =VLOOKUP(TA!$A$20&$B46,Dados!$A$2:$P$171,16,0) -> 0 | G47: =VLOOKUP(TA!$A$20&$B46,Dados!$A$2:$Q$171,17,0) -> 0 | H47: =VLOOKUP(TA!$A$20&$B46,Dados!$A$2:$R$171,18,0) -> 10 | I47: =VLOOKUP(TA!$A$20&$B46,Dados!$A$2:$S$171,19,0) -> 172 | J47: 292 | K47: 12425 | L47: =VLOOKUP(TA!$A$20&$B46,Dados!$A$2:$K$171,9,0) -> 3346 | M47: =VLOOKUP(TA!$A$20&$B46,Dados!$A$2:$O$171,15,0) -> 50954 | N47: =VLOOKUP(TA!$A$20&$B46,Dados!$A$2:$K$171,10,0) -> 51732 | O47: =IF($N47=0,"",IF($N44=0,"",($N47/$N44)-1)) -> -0.02847055288 | P47: =VLOOKUP(TA!$A$20&$B46,Dados!$A$2:$K$171,11,0) -> 42129
B48: Total | D48: =D46+D47 -> 2880 | E48: =E46+E47 -> 47873 | F48: 0 | G48: 2 | H48: 10 | I48: 172 | J48: 2890 | K48: 48047 | L48: =L46+L47 -> 6253 | M48: =M46+M47 -> 68053 | N48: =N46+N47 -> 83221 | O48: =IF($N48=0,"",($N48/$N45)-1) -> -0.008222998177 | P48: =P46+P47 -> 73260
B49: Consolidado | C49: Siapro | D49: =IF(TA!$A$20<2018,D13+D16+D19+D22+D25+D28+D31+D34+D37+D40+D43+D46,IF(TA!$A$20=2018,D13+D16+D19,"")) ->  | J49: =IF(TA!$A$20<2018,J13+J16+J19+J22+J25+J28+J31+J34+J37+J40+J43+J46,IF(TA!$A$20=2018,J13+J16+J19,"")) ->  | L49: =IF(TA!$A$20<2018,L13+L16+L19+L22+L25+L28+L31+L34+L37+L40+L43+L46,IF(TA!$A$20=2018,L13+L16+L19,"")) -> 
C50: Apolo | D50: =D14+D17+D20+D23+D26+D29+D32+D35+D38+D41+D44+D47 -> 12253 | F50: =F14+F17+F20+F23+F26+F29+F32+F35+F38+F41+F44+F47 -> 0 | H50: =H14+H17+H20+H23+H26+H29+H32+H35+H38+H41+H44+H47 -> 172 | J50: =J14+J17+J20+J23+J26+J29+J32+J35+J38+J41+J44+J47 -> 12425 | L50: =L14+L17+L20+L23+L26+L29+L32+L35+L38+L41+L44+L47 -> 50954
C51: Eproc | D51: =IF(TA!$A$20<2018,"",IF(TA!$A$20=2018,D22+D25+D28+D31+D34+D37+D40+D43+D46,IF(TA!$A$20>2018,D13+D16+D19+D22+D25+D28+D31+D34+D37+D40+D43+D46,""))) -> 35620 | F51: =IF(TA!$A$20<2018,"",IF(TA!$A$20=2018,F22+F25+F28+F31+F34+F37+F40+F43+F46,IF(TA!$A$20>2018,F13+F16+F19+F22+F25+F28+F31+F34+F37+F40+F43+F46,""))) -> 2 | J51: =IF(TA!$A$20<2018,"",IF(TA!$A$20=2018,J22+J25+J28+J31+J34+J37+J40+J43+J46,IF(TA!$A$20>2018,J13+J16+J19+J22+J25+J28+J31+J34+J37+J40+J43+J46,""))) -> 35622 | L51: =IF(TA!$A$20<2018,"",IF(TA!$A$20=2018,L22+L25+L28+L31+L34+L37+L40+L43+L46,IF(TA!$A$20>2018,L13+L16+L19+L22+L25+L28+L31+L34+L37+L40+L43+L46,""))) -> 17099
B52: Total | D52: =SUM(D49:D51) -> 47873 | F52: =SUM(F49:F51) -> 2 | H52: =SUM(H49:H51) -> 172 | J52: =SUM(J49:J51) -> 48047 | L52: =SUM(L49:L51) -> 68053
A54: Legenda: Tramitação Ajustada (TA) do Siapro = TRAM - O (Suspensos) - P (Aguardando o Julgamento do Agravo) (*) Tram. Ajustada (TA) do Apolo = TRAM - O (Suspensos)
A55: OBS.: Os valores poderão ser alterados, em função de modificações na base de dados, por parte do usuário.
A57: (*) 1ª Distribuição no TRF = CASOS NOVOS para o TRF (*) Distribuídos para o Apolo (Origem: Sistema Siapro) = Com a implantação do Sistema Apolo (DEZ/2013), o Sistema Siapro passou a ser descontinuado.
A58: _ Na semana de 19 a 23/03/2018, iniciou-se a Migração de TODOS os processos do sistema Siapro para o Sistema Apolo .
A59: _ Desde o dia 27 de Abril de 2018, o NOVO sistema processual "Eproc" está em funcionamento no Tribunal, o Sistema Apolo passou a ser descontinuado.

Sheet GTDJaMS (hidden)
A1: TRF2 - Processos Siapro - Série Histórica | K1: no Ano de:

Sheet GTvM2B (hidden)
A1: =TA!$A$24 & " (% Variação Mensal)" -> TRF2 - Processos em TRAMITAÇÃO em 2019 (% Variação Mensal) | K1: no Ano de:
AJ2: certo geral

Sheet GTvM3B18 (hidden)
A1: =TA!$A$24 & " (% Variação Mensal)" -> TRF2 - Processos em TRAMITAÇÃO em 2019 (% Variação Mensal) | K1: no Ano de:
AJ2: certo geral

Sheet GDaM2B (hidden)
A1: =TA!$A$25 & " (Acumulado Mensal)" -> TRF2 - Processos DISTRIBUÍDOS (1ª Distribuição) em 2019 (Acumulado Mensal) | K1: no Ano de:
AJ2: errado para 2018

Sheet GDaM3B18 (hidden)
A1: =TA!$A$25 & " (Acumulado Mensal)" -> TRF2 - Processos DISTRIBUÍDOS (1ª Distribuição) em 2019 (Acumulado Mensal) | K1: no Ano de:
AJ2: certo só para 2018

Sheet GJaM2B (hidden)
A1: =TA!$A$26 & " (Acumulado Mensal)" -> TRF2 - Processos JULGADOS em 2019 (Acumulado Mensal) | K1: no Ano de:
AJ2: errado para 2018

Sheet GJaM3B18 (hidden)
A1: =TA!$A$26 & " (Acumulado Mensal)" -> TRF2 - Processos JULGADOS em 2019 (Acumulado Mensal) | K1: no Ano de:
AJ2: certo só para 2018

Sheet PvAT (hidden)
E5: Tipo Processo | G5: Judicial
D7: (*) 1ª Distribuição no TRF | F7: (*) Distribuídos para o Apolo (Origem: Sistema Siapro) | J7: Total de Distribuídos nas Bases de Dados
F8: (*) Migrados para o Eproc (Origem: Sistema Apolo)
C9: Base de Dados do Processo | D9: (A) | E9: % Variação Anual | F9: Por Migração (M) | G9: % Variação Anual | H9: Por Virtualização (V) | I9: % Variação Anual | J9: (A)+(M)+(V) | K9: % Variação Anual | L9: Julgados (TJI) | M9: % Variação Anual | N9: Saldo Atual (TRAM) | O9: % Variação Anual da Tramitação | P9: (*) Tram. Ajustada (TA) | AJ9: A | AO9: E
B10: Ano | AJ10: A | AK10: J | AL10: TR | AO10: A | AP10: J | AQ10: TR
B11: 2005 | C11: Siapro | D11: =SUMIF(Dados!$A$86:$G$171,$B11,Dados!$C$86:$C$171) -> 34979 | J11: =D11 -> 34979 | L11: =SUMIF(Dados!$A$86:$G$171,$B11,Dados!$D$86:$D$171) -> 47264 | N11: =VLOOKUP($B11&"Dezembro",Dados!$A$86:$G$171,6,0) -> 115794 | P11: =VLOOKUP($B11&"Dezembro",Dados!$A$86:$G$171,7,0) -> 115688
B12: 2006 | C12: Siapro | D12: =SUMIF(Dados!$A$86:$G$171,$B12,Dados!$C$86:$C$171) -> 37963 | E12: =IF($D11=0,"",($D12/$D11)-1) -> 0.08530832785 | J12: =D12 -> 37963 | K12: =IF($J11=0,"",($J12/$J11)-1) -> 0.08530832785 | L12: =SUMIF(Dados!$A$86:$G$171,$B12,Dados!$D$86:$D$171) -> 61131 | M12: =IF($L11=0,"",($L12/$L11)-1) -> 0.2933945498 | N12: =VLOOKUP($B12&"Dezembro",Dados!$A$86:$G$171,6,0) -> 105290 | O12: =IF($N11=0,"",($N12/$N11)-1) -> -0.09071281759 | P12: =VLOOKUP($B12&"Dezembro",Dados!$A$86:$G$171,7,0) -> 105185 | AJ12: 0 | AK12: 0 | AL12: 0 | AO12: 0 | AP12: 0 | AQ12: 0
B13: 2007 | C13: Siapro | D13: =SUMIF(Dados!$A$86:$G$171,$B13,Dados!$C$86:$C$171) -> 42394 | E13: 0.1167189105 | J13: =D13 -> 42394 | K13: =IF($J12=0,"",($J13/$J12)-1) -> 0.1167189105 | L13: =SUMIF(Dados!$A$86:$G$171,$B13,Dados!$D$86:$D$171) -> 63812 | M13: 0.04385663575 | N13: =VLOOKUP($B13&"Dezembro",Dados!$A$86:$G$171,6,0) -> 99861 | O13: -0.0515623516 | P13: =VLOOKUP($B13&"Dezembro",Dados!$A$86:$G$171,7,0) -> 99790 | AJ13: 0 | AK13: 0 | AL13: 0 | AO13: 0 | AP13: 0 | AQ13: 0
B14: 2008 | C14: Siapro | D14: =SUMIF(Dados!$A$86:$G$171,$B14,Dados!$C$86:$C$171) -> 47906 | E14: 0.1300183988 | J14: 47906 | K14: =IF($J13=0,"",($J14/$J13)-1) -> 0.1300183988 | L14: =SUMIF(Dados!$A$86:$G$171,$B14,Dados!$D$86:$D$171) -> 68405 | M14: 0.07197705761 | N14: =VLOOKUP($B14&"Dezembro",Dados!$A$86:$G$171,6,0) -> 93504 | O14: -0.06365848529 | P14: =VLOOKUP($B14&"Dezembro",Dados!$A$86:$G$171,7,0) -> 92985 | AJ14: 0 | AK14: 0 | AL14: 0 | AO14: 0 | AP14: 0 | AQ14: 0
B15: 2009 | C15: Siapro | D15: =SUMIF(Dados!$A$86:$G$171,$B15,Dados!$C$86:$C$171) -> 48724 | E15: 0.01707510541 | J15: 48724 | K15: 0.01707510541 | L15: =SUMIF(Dados!$A$86:$G$171,$B15,Dados!$D$86:$D$171) -> 73000 | M15: 0.06717345223 | N15: =VLOOKUP($B15&"Dezembro",Dados!$A$86:$G$171,6,0) -> 90849 | O15: -0.02839450719 | P15: =VLOOKUP($B15&"Dezembro",Dados!$A$86:$G$171,7,0) -> 89584 | AJ15: 0 | AK15: 0 | AL15: 0 | AO15: 0 | AP15: 0 | AQ15: 0
B16: 2010 | C16: Siapro | D16: =SUMIF(Dados!$A$86:$G$171,$B16,Dados!$C$86:$C$171) -> 50640 | E16: 0.03932353666 | J16: 50640 | K16: 0.03932353666 | L16: =SUMIF(Dados!$A$86:$G$171,$B16,Dados!$D$86:$D$171) -> 69325 | M16: -0.05034246575 | N16: =VLOOKUP($B16&"Dezembro",Dados!$A$86:$G$171,6,0) -> 96543 | O16: 0.06267542846 | P16: =VLOOKUP($B16&"Dezembro",Dados!$A$86:$G$171,7,0) -> 92589 | AJ16: 0 | AK16: 0 | AL16: 0 | AO16: 0 | AP16: 0 | AQ16: 0
B17: 2011 | C17: Siapro | D17: =SUMIF(Dados!$A$86:$G$171,$B17,Dados!$C$86:$C$171) -> 52243 | E17: 0.03165481833 | J17: 52243 | K17: 0.03165481833 | L17: =SUMIF(Dados!$A$86:$G$171,$B17,Dados!$D$86:$D$171) -> 79119 | M17: 0.1412765957 | N17: =VLOOKUP($B17&"Dezembro",Dados!$A$86:$G$171,6,0) -> 97050 | O17: 0.005251545943 | P17: =VLOOKUP($B17&"Dezembro",Dados!$A$86:$G$171,7,0) -> 93519 | AJ17: 0 | AK17: 0 | AL17: 0 | AO17: 0 | AP17: 0 | AQ17: 0
B18: 2012 | C18: Siapro | D18: =SUMIF(Dados!$A$86:$G$171,$B18,Dados!$C$86:$C$171) -> 53335 | E18: 0.02090232184 | J18: 53335 | K18: 0.02090232184 | L18: =SUMIF(Dados!$A$86:$G$171,$B18,Dados!$D$86:$D$171) -> 81295 | M18: 0.02750287542 | N18: =VLOOKUP($B18&"Dezembro",Dados!$A$86:$G$171,6,0) -> 96397 | O18: -0.006728490469 | P18: =VLOOKUP($B18&"Dezembro",Dados!$A$86:$G$171,7,0) -> 92676 | AJ18: 0 | AK18: 0 | AL18: 0 | AO18: 0 | AP18: 0 | AQ18: 0
B19: 2013 | C19: Siapro | D19: =SUMIF(Dados!$A$2:$G$85,$B19,Dados!$C$2:$C$85) -> 61160 | E19: 0.1467141652 | J19: =D19+F19+H19 -> 61160 | K19: 0.1467141652 | L19: =SUMIF(Dados!$A$2:$G$85,$B19,Dados!$D$2:$D$85) -> 81874 | M19: 0.007122209238 | N19: =VLOOKUP($B19&"Dezembro",Dados!$A$2:$G$85,6,0) -> 108814 | O19: 0.1288110626 | P19: =VLOOKUP($B19&"Dezembro",Dados!$A$2:$G$85,7,0) -> 105131 | AJ19: =D20 -> 308 | AK19: 0 | AL19: =N20 -> 308 | AO19: 0 | AP19: 0 | AQ19: 0
C20: Apolo | D20: =SUMIF(Dados!$A$2:$G$85,$B19,Dados!$G$2:$G$85) -> 308 | J20: 308 | N20: =VLOOKUP($B19&"Dezembro",Dados!$A$2:$K$85,10,0) -> 308 | P20: =VLOOKUP($B19&"Dezembro",Dados!$A$2:$K$85,11,0) -> 308 | AJ20: =D23 -> 49299 | AK20: =L23 -> 26557 | AL20: =N23 -> 44255 | AO20: 0 | AP20: 0 | AQ20: 0
B21: Total | D21: =D19+D20 -> 61468 | E21: =IF($D21=0,"",($D21/$D18)-1) -> 0.1524889847 | F21: =F19+F20 -> 0 | G21: =IF($F21=0,"",($F21/#REF!)-1) ->  | H21: =H19+H20 -> 0 | I21: =IF($H21=0,"",($H21/#REF!)-1) ->  | J21: 61468 | K21: =IF($J21=0,"",($J21/$J18)-1) -> 0.1524889847 | L21: =L19+L20 -> 81874 | M21: =IF($L21=0,"",($L21/$L18)-1) -> 0.007122209238 | N21: =N19+N20 -> 109122 | O21: =IF($N21=0,"",($N21/$N18)-1) -> 0.1320061828 | P21: =P19+P20 -> 105439 | AJ21: =D26 -> 51618 | AK21: =L26 -> 47157 | AL21: =N26 -> 75365 | AO21: 0 | AP21: 0 | AQ21: 0
B22: 2014 | C22: Siapro | D22: =SUMIF(Dados!$A$2:$G$85,$B22,Dados!$C$2:$C$85) -> 19733 | E22: =IF($D19=0,"",($D22/$D19)-1) -> -0.6773544801 | J22: 19733 | K22: =IF($J19=0,"",($J22/$J19)-1) -> -0.6773544801 | L22: =SUMIF(Dados!$A$2:$G$85,$B22,Dados!$D$2:$D$85) -> 59685 | M22: =IF($L19=0,"",($L22/$L19)-1) -> -0.2710139971 | N22: =VLOOKUP($B22&"Dezembro",Dados!$A$2:$G$85,6,0) -> 77078 | O22: =IF($N22=0,"",($N22/$N19)-1) -> -0.2916536475 | P22: =VLOOKUP($B22&"Dezembro",Dados!$A$2:$G$85,7,0) -> 72977 | AJ22: =D29 -> 44813 | AK22: =L29 -> 50058 | AL22: =N29 -> 80830 | AO22: 0 | AP22: 0 | AQ22: 0
C23: Apolo | D23: =SUMIF(Dados!$A$2:$G$85,$B22,Dados!$G$2:$G$85) -> 49299 | E23: =IF($D20=0,"",($D23/$D20)-1) -> 159.0616883 | F23: =SUMIF(Dados!$A$2:$P$85,$B22,Dados!$O$2:$O$85) -> 0 | G23: =IF($F20=0,"",($F23/$F20)-1) ->  | H23: =SUMIF(Dados!$A$2:$R$85,$B22,Dados!$Q$2:$Q$85) -> 1763 | I23: =IF($H20=0,"",($H23/$H20)-1) ->  | J23: 51062 | K23: =IF($J20=0,"",($J23/$J20)-1) -> 164.7857143 | L23: =SUMIF(Dados!$A$2:$G$85,$B22,Dados!$H$2:$H$85) -> 26557 | M23: 1 | N23: =VLOOKUP($B22&"Dezembro",Dados!$A$2:$K$85,10,0) -> 44255 | O23: =IF($N23=0,"",IF($N20=0,"",($N23/$N20)-1)) -> 142.6850649 | P23: =VLOOKUP($B22&"Dezembro",Dados!$A$2:$K$85,11,0) -> 44232 | AJ23: =D32 -> 42008 | AK23: =L32 -> 57866 | AL23: =N32 -> 80525 | AO23: 0 | AP23: 0 | AQ23: 0
B24: Total | D24: =D22+D23 -> 69032 | E24: =IF($D24=0,"",($D24/$D21)-1) -> 0.123055899 | F24: =F22+F23 -> 0 | G24: =IF($F24=0,"",($F24/$F21)-1) ->  | H24: =H22+H23 -> 1763 | J24: 70795 | K24: =IF($J24=0,"",($J24/$J21)-1) -> 0.1517374894 | L24: =L22+L23 -> 86242 | M24: =IF($L24=0,"",($L24/$L21)-1) -> 0.05335026993 | N24: =N22+N23 -> 121333 | O24: =IF($N24=0,"",($N24/$N21)-1) -> 0.1119022745 | P24: =P22+P23 -> 117209 | AJ24: =D35 -> 36881 | AK24: =L35 -> 64352 | AL24: =N35 -> 77849 | AO24: =D36 -> 4244 | AP24: =L36 -> 480 | AQ24: =N36 -> 4154
B25: 2015 | C25: Siapro | D25: =SUMIF(Dados!$A$2:$G$85,$B25,Dados!$C$2:$C$85) -> 1164 | E25: =IF($D22=0,"",($D25/$D22)-1) -> -0.9410125171 | J25: 1164 | K25: =IF($J22=0,"",($J25/$J22)-1) -> -0.9410125171 | L25: =SUMIF(Dados!$A$2:$G$85,$B25,Dados!$D$2:$D$85) -> 22493 | M25: =IF($L22=0,"",($L25/$L22)-1) -> -0.6231381419 | N25: =VLOOKUP($B25&"Dezembro",Dados!$A$2:$G$85,6,0) -> 39179 | O25: =IF($N25=0,"",($N25/$N22)-1) -> -0.4916967228 | P25: =VLOOKUP($B25&"Dezembro",Dados!$A$2:$G$85,7,0) -> 36665 | AJ25: =D38 -> 12253 | AK25: =L38 -> 50954 | AL25: =N38 -> 51732 | AO25: =D39 -> 35620 | AP25: =L39 -> 17099 | AQ25: =N39 -> 31489
C26: Apolo | D26: =SUMIF(Dados!$A$2:$G$85,$B25,Dados!$G$2:$G$85) -> 51618 | E26: =IF($D23=0,"",($D26/$D23)-1) -> 0.0470394937 | F26: =SUMIF(Dados!$A$2:$P$85,$B25,Dados!$O$2:$O$85) -> 7588 | G26: =IF($F23=0,"",($F26/$F23)-1) ->  | H26: =SUMIF(Dados!$A$2:$Q$85,$B25,Dados!$Q$2:$Q$85) -> 4145 | I26: =IF($H23=0,"",($H26/$H23)-1) -> 1.351106069 | J26: 63351 | K26: =IF($J23=0,"",($J26/$J23)-1) -> 0.2406682073 | L26: =SUMIF(Dados!$A$2:$G$85,$B25,Dados!$H$2:$H$85) -> 47157 | M26: =IF($L23=0,"",($L26/$L23)-1) -> 0.7756900252 | N26: =VLOOKUP($B25&"Dezembro",Dados!$A$2:$K$85,10,0) -> 75365 | O26: =IF($N26=0,"",IF($N23=0,"",($N26/$N23)-1)) -> 0.7029714157 | P26: =VLOOKUP($B25&"Dezembro",Dados!$A$2:$K$85,11,0) -> 72256
B27: Total | D27: =D25+D26 -> 52782 | E27: =IF($D27=0,"",($D27/$D24)-1) -> -0.2353980763 | F27: =F25+F26 -> 7588 | H27: =H25+H26 -> 4145 | I27: =IF($H27=0,"",($H27/$H24)-1) -> 1.351106069 | J27: 64515 | K27: =IF($J27=0,"",($J27/$J24)-1) -> -0.08870682958 | L27: =L25+L26 -> 69650 | M27: =IF($L27=0,"",($L27/$L24)-1) -> -0.1923888593 | N27: =N25+N26 -> 114544 | O27: =IF($N27=0,"",($N27/$N24)-1) -> -0.05595345042 | P27: =P25+P26 -> 108921 | AJ27: 2017 | AK27: TPJ | AL27: TJ2G | AN27: 2017 | AO27: TPAll | AP27: TJAll | AQ27: #
B28: 2016 | C28: Siapro | D28: =SUMIF(Dados!$A$2:$G$85,$B28,Dados!$C$2:$C$85) -> 2 | E28: =IF($D28=0,"",IF($D25=0,"",($D28/$D25)-1)) -> -0.9982817869 | J28: 2 | K28: =IF($J28=0,"",IF($J25=0,"",($J28/$J25)-1)) -> -0.9982817869 | L28: =SUMIF(Dados!$A$2:$G$85,$B28,Dados!$D$2:$D$85) -> 9684 | M28: =IF($L25=0,"",($L28/$L25)-1) -> -0.5694660561 | N28: =VLOOKUP($B28&"Dezembro",Dados!$A$2:$G$85,6,0) -> 16985 | O28: =IF($N28=0,"",($N28/$N25)-1) -> -0.5664769392 | P28: =VLOOKUP($B28&"Dezembro",Dados!$A$2:$G$85,7,0) -> 15697 | AJ28: (PE) | AK28: A= | AL28: 41972 | AN28: (RelAtiv) | AO28: A= | AP28: 42008 | AQ28: =AL28-AP28 -> -36
C29: Apolo | D29: =SUMIF(Dados!$A$2:$G$85,$B28,Dados!$G$2:$G$85) -> 44813 | E29: =IF($D26=0,"",($D29/$D26)-1) -> -0.1318338564 | F29: =SUMIF(Dados!$A$2:$P$85,$B28,Dados!$O$2:$O$85) -> 208 | G29: =IF($F26=0,"",($F29/$F26)-1) -> -0.9725882973 | H29: =SUMIF(Dados!$A$2:$Q$85,$B28,Dados!$Q$2:$Q$85) -> 85 | I29: =IF($H29=0,"",IF($H26=0,"",($H29/$H26)-1)) -> -0.9794933655 | J29: 45106 | K29: =IF($J26=0,"",($J29/$J26)-1) -> -0.2879986109 | L29: =SUMIF(Dados!$A$2:$G$85,$B28,Dados!$H$2:$H$85) -> 50058 | M29: =IF($L26=0,"",($L29/$L26)-1) -> 0.06151790826 | N29: =VLOOKUP($B28&"Dezembro",Dados!$A$2:$K$85,10,0) -> 80830 | O29: =IF($N29=0,"",IF($N26=0,"",($N29/$N26)-1)) -> 0.07251376634 | P29: =VLOOKUP($B28&"Dezembro",Dados!$A$2:$K$85,11,0) -> 75705 | AK29: M= | AL29: 227 | AN29: (AQUI) | AO29: M= | AP29: 227 | AQ29: 0
B30: Total | D30: =D28+D29 -> 44815 | E30: =IF($D30=0,"",($D30/$D27)-1) -> -0.1509416089 | F30: =F28+F29 -> 208 | G30: =IF($F27=0,"",($F30/$F27)-1) -> -0.9725882973 | H30: =H28+H29 -> 85 | I30: =IF($H30=0,"",($H30/$H27)-1) -> -0.9794933655 | J30: 45108 | K30: =IF($J30=0,"",($J30/$J27)-1) -> -0.3008137642 | L30: =L28+L29 -> 59742 | M30: =IF($L30=0,"",($L30/$L27)-1) -> -0.1422541278 | N30: =N28+N29 -> 97815 | O30: =IF($N30=0,"",($N30/$N27)-1) -> -0.14604868 | P30: =P28+P29 -> 91402 | AK30: V= | AL30: 702 | AO30: V= | AP30: 726 | AQ30: =AL30-AP30 -> -24
B31: 2017 | C31: Siapro | D31: 0 | E31: =IF($D31=0,"",IF($D28=0,"",($D31/$D28)-1)) -> -1 | J31: 0 | K31: =IF($J31=0,"",IF($J28=0,"",($J31/$J28)-1)) -> -1 | L31: =SUMIF(Dados!$A$2:$G$85,$B31,Dados!$D$2:$D$85) -> 7604 | M31: =IF($L28=0,"",($L31/$L28)-1) -> -0.214787278 | N31: =VLOOKUP($B31&"Dezembro",Dados!$A$2:$G$85,6,0) -> 8724 | O31: =IF($N31=0,"",($N31/$N28)-1) -> -0.4863703268 | P31: =VLOOKUP($B31&"Dezembro",Dados!$A$2:$G$85,7,0) -> 8246 | AK31: TJI= | AL31: 57847 | AO31: TJI= | AP31: 57866 | AQ31: -19
C32: Apolo | D32: =SUMIF(Dados!$A$2:$G$85,$B31,Dados!$G$2:$G$85) -> 42008 | E32: =IF($D29=0,"",($D32/$D29)-1) -> -0.06259344387 | F32: =SUMIF(Dados!$A$2:$P$85,$B31,Dados!$O$2:$O$85) -> 227 | G32: =IF($F29=0,"",($F32/$F29)-1) -> 0.09134615385 | H32: =SUMIF(Dados!$A$2:$Q$85,$B31,Dados!$Q$2:$Q$85) -> 726 | I32: =IF($H32=0,"",IF($H29=0,"",($H32/$H29)-1)) -> 7.541176471 | J32: =D32+F32+H32 -> 42961 | K32: =IF($J29=0,"",($J32/$J29)-1) -> -0.04755464905 | L32: =SUMIF(Dados!$A$2:$G$85,$B31,Dados!$H$2:$H$85) -> 57866 | M32: =IF($L29=0,"",($L32/$L29)-1) -> 0.1559790643 | N32: =VLOOKUP($B31&"Dezembro",Dados!$A$2:$K$85,10,0) -> 80525 | O32: =IF($N32=0,"",IF($N29=0,"",($N32/$N29)-1)) -> -0.003773351478 | P32: =VLOOKUP($B31&"Dezembro",Dados!$A$2:$K$85,11,0) -> 76077 | AK32: TRAM= | AL32: 80464 | AO32: TRAM= | AP32: 80525 | AQ32: -61
B33: Total | D33: =D31+D32 -> 42008 | E33: =IF($D33=0,"",($D33/$D30)-1) -> -0.06263527837 | F33: =F31+F32 -> 227 | G33: =IF($F30=0,"",($F33/$F30)-1) -> 0.09134615385 | H33: =H31+H32 -> 726 | I33: =IF($H33=0,"",($H33/$H30)-1) -> 7.541176471 | J33: 42961 | K33: =IF($J33=0,"",($J33/$J30)-1) -> -0.0475968786 | L33: =L31+L32 -> 65470 | M33: =IF($L33=0,"",($L33/$L30)-1) -> 0.09587894614 | N33: =N31+N32 -> 89249 | O33: =IF($N33=0,"",($N33/$N30)-1) -> -0.08757348055 | P33: =P31+P32 -> 84323 | AK33: TA= | AL33: 76016 | AO33: TA= | AP33: 76077 | AQ33: -61
B34: 2018 | C34: Siapro | D34: =SUMIF(Dados!$A$14:$G$16,$B34,Dados!$C$14:$C$16) -> 1 | E34: 1 | J34: 1 | K34: 1 | L34: =SUMIF(Dados!$A$14:$G$16,$B34,Dados!$D$14:$D$16) -> 1421 | M34: =IF($L31=0,"",($L34/$L31)-1) -> -0.8131246712 | N34: 0 | O34: =IF($N34=0,"",($N34/$N31)-1) -> -1 | P34: 0 | AJ34: => No 2º semestre de 2018 identifiquei Processos TRU no Apolo
C35: Apolo | D35: =SUMIF(Dados!$A$2:$G$85,$B34,Dados!$G$2:$G$85) -> 36881 | E35: =IF($D32=0,"",($D35/$D32)-1) -> -0.1220481813 | F35: =SUMIF(Dados!$A$2:$P$85,$B34,Dados!$O$2:$O$85) -> 7984 | G35: =IF($F32=0,"",($F35/$F32)-1) -> 34.17180617 | H35: =SUMIF(Dados!$A$2:$Q$85,$B34,Dados!$Q$2:$Q$85) -> 540 | I35: =IF($H35=0,"",IF($H32=0,"",($H35/$H32)-1)) -> -0.2561983471 | J35: 45405 | K35: =IF($J32=0,"",($J35/$J32)-1) -> 0.05688880613 | L35: =SUMIF(Dados!$A$2:$G$85,$B34,Dados!$H$2:$H$85) -> 64352 | M35: =IF($L32=0,"",($L35/$L32)-1) -> 0.1120865448 | N35: =VLOOKUP($B34&"Dezembro",Dados!$A$2:$K$85,10,0) -> 77849 | O35: =IF($N35=0,"",IF($N32=0,"",($N35/$N32)-1)) -> -0.03323191555 | P35: =VLOOKUP($B34&"Dezembro",Dados!$A$2:$K$85,11,0) -> 71773 | AJ35: => RelAtiv 2017 já tinha sido publicado (2017 ñ foi republicado)
C36: Eproc | D36: =SUMIF(Dados!$A$17:$V$25,$B34,Dados!$C$17:$C$25) -> 4244 | E36: 1 | F36: =SUMIF(Dados!$A$17:$V$25,$B34,Dados!$T$17:$T$25) -> 0 | J36: 4244 | K36: 1 | L36: =SUMIF(Dados!$A$17:$V$25,$B34,Dados!$D$17:$D$25) -> 480 | M36: 1 | N36: =VLOOKUP($B34&"Dezembro",Dados!$A$17:$V$25,6,0) -> 4154 | O36: 1 | P36: =VLOOKUP($B34&"Dezembro",Dados!$A$17:$V$25,7,0) -> 4149 | AM36: 2018 (TJI) S+e
B37: Total | D37: =SUM(D34:D36) -> 41126 | E37: =IF($D37=0,"",($D37/$D33)-1) -> -0.02099600076 | F37: =SUM(F34:F36) -> 7984 | G37: =IF($F33=0,"",($F37/$F33)-1) -> 34.17180617 | H37: =SUM(H34:H36) -> 540 | I37: =IF($H37=0,"",($H37/$H33)-1) -> -0.2561983471 | J37: 49650 | K37: =IF($J37=0,"",($J37/$J33)-1) -> 0.1556993552 | L37: =SUM(L34:L36) -> 66253 | M37: =IF($L37=0,"",($L37/$L33)-1) -> 0.01195967619 | N37: =SUM(N34:N36) -> 82003 | O37: =IF($N37=0,"",($N37/$N33)-1) -> -0.08118858475 | P37: =SUM(P34:P36) -> 75922 | AJ37: =D34+D36 -> 4245 | AK37: 2018 (A) S+e | AM37: =L34+L36 -> 1901 | AN37: =IF($L31=0,"",($AM37/$L31)-1) -> -0.75
B38: 2019 | C38: Apolo | D38: =SUMIF(Dados!$A$2:$G$85,$B38,Dados!$G$2:$G$85) -> 12253 | E38: =IF($D35=0,"",($D38/$D35)-1) -> -0.6677693121 | F38: =SUMIF(Dados!$A$2:$P$85,$B38,Dados!$O$2:$O$85) -> 0 | G38: =IF($F38=0,"",($F38/$F35)-1) ->  | H38: =SUMIF(Dados!$A$2:$Q$85,$B38,Dados!$Q$2:$Q$85) -> 172 | I38: =IF($H38=0,"",IF($H35=0,"",($H38/$H35)-1)) -> -0.6814814815 | J38: 12425 | K38: =IF($J35=0,"",($J38/$J35)-1) -> -0.7263517234 | L38: =SUMIF(Dados!$A$2:$G$85,$B38,Dados!$H$2:$H$85) -> 50954 | M38: =IF($L35=0,"",($L38/$L35)-1) -> -0.2081986574 | N38: =VLOOKUP($B38&TA!$F$4,Dados!$A$2:$K$85,10,0) -> 51732 | O38: =IF($N38=0,"",IF($N35=0,"",($N38/$N35)-1)) -> -0.3354827936 | P38: =VLOOKUP($B38&TA!$F$4,Dados!$A$2:$K$85,11,0) -> 42129
C39: Eproc | D39: =SUMIF(Dados!$A$2:$V$85,$B38,Dados!$C$2:$C$85) -> 35620 | E39: =IF($D36=0,"",($D39/$D36)-1) -> 7.393025448 | F39: =SUMIF(Dados!$A$2:$V$85,$B38,Dados!$T$2:$T$85) -> 2 | J39: 35622 | K39: =IF($J36=0,"",($J39/$J36)-1) -> 7.393496701 | L39: =SUMIF(Dados!$A$2:$V$85,$B38,Dados!$D$2:$D$85) -> 17099 | M39: =IF($L36=0,"",($L39/$L36)-1) -> 34.62291667 | N39: =VLOOKUP($B38&TA!$F$4,Dados!$A$2:$K$85,6,0) -> 31489 | O39: =IF($N39=0,"",IF($N36=0,"",($N39/$N36)-1)) -> 6.580404429 | P39: =VLOOKUP($B38&TA!$F$4,Dados!$A$2:$K$85,7,0) -> 31131
B40: Total | D40: =D38+D39 -> 47873 | E40: =IF($D40=0,"",($D40/$D37)-1) -> 0.1640568011 | F40: =F38+F39 -> 2 | H40: =H38+H39 -> 172 | I40: =IF($H37=0,"",($H40/$H37)-1) -> -0.6814814815 | J40: 48047 | K40: =IF($J37=0,"",($J40/$J37)-1) -> -0.03228600201 | L40: =L38+L39 -> 68053 | M40: =IF($L37=0,"",($L40/$L37)-1) -> 0.02716858105 | N40: =N38+N39 -> 83221 | O40: =IF($N37=0,"",($N40/$N37)-1) -> 0.01485311513 | P40: =P38+P39 -> 73260
B41: Consolidado | C41: Siapro | D41: =SUM(D12:D19)+D22+D25+D28+D31+D34 -> 415265 | J41: =SUM(J12:J19)+J22+J25+J28+J31+J34 -> 415265 | L41: =SUM(L12:L19)+L22+L25+L28+L31+L34 -> 678848
C42: Apolo | D42: =D20+D23+D26+D29+D32+D35+D38 -> 237180 | F42: =F20+F23+F26+F29+F32+F35+F38 -> 16007 | H42: =H20+H23+H26+H29+H32+H35+H38 -> 7431 | J42: =J20+J23+J26+J29+J32+J35+J38 -> 260618 | L42: =L20+L23+L26+L29+L32+L35+L38 -> 296944
C43: Eproc | D43: =D36+D39 -> 39864 | F43: =F36+F39 -> 2 | H43: =H36+H39 -> 0 | J43: =J36+J39 -> 39866 | L43: =L36+L39 -> 17579
B44: Total | D44: =SUM(D41:D43) -> 692309 | F44: =F42+F43 -> 16009 | H44: =H42+H43 -> 7431 | J44: =SUM(J41:J43) -> 715749 | L44: =SUM(L41:L43) -> 993371
A46: Legenda: Tramitação Ajustada (TA) do Siapro = TRAM - O (Suspensos) - P (Aguardando o Julgamento do Agravo) (*) Tram. Ajustada (TA) do Apolo = TRAM - O (Suspensos)
A47: OBS.: Os valores poderão ser alterados, em função de modificações na base de dados, por parte do usuário.
A49: (*) 1ª Distribuição no TRF = CASOS NOVOS para o TRF (*) Distribuídos para o Apolo (Origem: Sistema Siapro) = Com a implantação do Sistema Apolo (DEZ/2013), o Sistema Siapro passou a ser descontinuado.
A50: _ Na semana de 19 a 23/03/2018, iniciou-se a Migração de TODOS os processos do sistema Siapro para o Sistema Apolo .
A51: _ Desde o dia 27 de Abril de 2018, o NOVO sistema processual "Eproc" está em funcionamento no Tribunal, o Sistema Apolo passou a ser descontinuado.

Sheet GP3AT (hidden)
A1: TRF2 - Gráficos de Pizza Comparativo Anual entre Processos Siapro, Apolo e Eproc
G2: Selecione o Triênio

Sheet GTvAT (hidden)
A1: =TA!$F$24 -> TRF2 - Série HISTÓRICA da TRAMITAÇÃO (DEZEMBRO)

Sheet GDvAT (hidden)
A1: =TA!$F$25 -> TRF2 - Série HISTÓRICA da 1ª DISTRIBUICÃO (TOTAL)

Sheet GJvAT (hidden)
A1: =TA!$F$26 -> TRF2 - Série HISTÓRICA de JULGADOS (TOTAL)

Sheet TA (hidden)
A1: Anos | B1: AnosSA | C1: Meses | D1: Meses Abrev | E1: Trienio | F1: IPC | K1: VER CÉLULAS AJ (all) | M1: 1
A2: 2006 | B2: 2013 | C2: JANEIRO | D2: Jan | E2: 2013 | 2014 | 2015 | F2: Mês Public | G2: Ano Public | M2: 2
A3: 2007 | B3: 2014 | C3: FEVEREIRO | D3: Fev | E3: 2014 | 2015 | 2016 | F3: 12 | G3: 2019 | M3: 3
A4: 2008 | B4: 2015 | C4: MARÇO | D4: Mar | E4: 2015 | 2016 | 2017 | F4: =INDEX(ListaMeses,F3) -> Dezembro | G4: F5, G23 a G25 | PvAnualT no AnoAtual ident MêsAtual E pesq TRAM e TA | M4: 4
A5: 2009 | B5: 2016 | C5: ABRIL | D5: Abr | E5: 2016 | 2017 | 2018 | F5: =IF($E$7<5,"Dezembro",$F$4) -> Dezembro | G5: J15, J16, K15 e K16 (TRAM e TA último ano abaixo) | M5: 5
A6: 2010 | B6: 2017 | C6: MAIO | D6: Mai | E6: 2017 | 2018 | 2019 | F6: =IF($E$7<5,"Dezembro/",F5&"/") -> Dezembro/ | G6: F7 (Texto TRAM último ano abaixo) | M6: 6
A7: 2011 | B7: 2018 | C7: JUNHO | D7: Jun | E7: 5 | F7: =IF($E$7<5,"em ","até "&F6) -> até Dezembro/ | G7: L16 e L17 (Texto DISTR e JULG último ano abaixo) | M7: 7
A8: 2012 | B8: 2019 | C8: JULHO | D8: Jul | E8: only Tram (pcausa2018) | H8: D | I8: J | J8: TR | K8: TA | M8: 8
C9: AGOSTO | D9: Ago | E9: =IF($F$9>2017,"Eproc","Siapro") -> Siapro | F9: =INDEX(ListaAnosSA,$E$7) -> 2017 | G9: =IF($F$9>2018,"Eproc",IF($F$9=2018,"Eproc + Siapro","Siapro")) -> Siapro | H9: =SUMIF(Dados!$A$2:$G$171,$F$9,Dados!$C$2:$C$171) -> 0 | I9: =SUMIF(Dados!$A$2:$G$171,$F$9,Dados!$D$2:$D$171) -> 7604 | J9: =VLOOKUP($F$9&"Dezembro",Dados!$A$2:$G$171,6,0) -> 8724 | K9: =VLOOKUP($F$9&"Dezembro",Dados!$A$2:$G$171,7,0) -> 8246 | L9: =TEXT(J11,"#.##0")&" Processos em TRAMITAÇÃO em Dezembro/"&F9 -> 89.249 Processos em TRAMITAÇÃO em Dezembro/2017
C10: SETEMBRO | D10: Set | E10: Apolo | G10: Apolo | H10: =SUMIF(Dados!$A$2:$G$171,$F$9,Dados!$G$2:$G$171) -> 42008 | I10: =SUMIF(Dados!$A$2:$G$171,$F$9,Dados!$H$2:$H$171) -> 57866 | J10: =VLOOKUP($F$9&"Dezembro",Dados!$A$2:$K$171,10,0) -> 80525 | K10: =VLOOKUP($F$9&"Dezembro",Dados!$A$2:$K$171,11,0) -> 76077 | L10: =TEXT(H11,"#.##0")&" Processos 1ª DISTRIBUIÇÃO em "&F9 -> 42.008 Processos 1ª DISTRIBUIÇÃO em 2017
C11: OUTUBRO | D11: Out | E11: Total | G11: Total | H11: =H9+H10 -> 42008 | I11: =I9+I10 -> 65470 | J11: =J9+J10 -> 89249 | K11: =K9+K10 -> 84323 | L11: =TEXT(I11,"#.##0")&" Processos JULGADOS em "&F9 -> 65.470 Processos JULGADOS em 2017
C12: NOVEMBRO | D12: Nov | E12: =IF($F$12>2017,"Eproc","Siapro") -> Eproc | F12: =$F$9+1 -> 2018 | G12: =IF($F$12>2018,"Eproc",IF($F$12=2018,"Eproc + Siapro","Siapro")) -> Eproc + Siapro | H12: =SUMIF(Dados!$A$2:$G$171,$F$12,Dados!$C$2:$C$171) -> 4245 | I12: =SUMIF(Dados!$A$2:$G$171,$F$12,Dados!$D$2:$D$171) -> 1901 | J12: =VLOOKUP($F$12&"Dezembro",Dados!$A$2:$G$171,6,0) -> 4154 | K12: =VLOOKUP($F$12&"Dezembro",Dados!$A$2:$G$171,7,0) -> 4149 | L12: =TEXT(J14,"#.##0")&" Processos em TRAMITAÇÃO em Dezembro/"&F12 -> 82.003 Processos em TRAMITAÇÃO em Dezembro/2018
C13: Dezembro | D13: Dez | E13: Apolo | G13: Apolo | H13: =SUMIF(Dados!$A$2:$G$171,$F$12,Dados!$G$2:$G$171) -> 36881 | I13: =SUMIF(Dados!$A$2:$G$171,$F$12,Dados!$H$2:$H$171) -> 64352 | J13: =VLOOKUP($F$12&"Dezembro",Dados!$A$2:$K$171,10,0) -> 77849 | K13: =VLOOKUP($F$12&"Dezembro",Dados!$A$2:$K$171,11,0) -> 71773 | L13: =TEXT(H14,"#.##0")&" Processos 1ª DISTRIBUIÇÃO em "&F12 -> 41.126 Processos 1ª DISTRIBUIÇÃO em 2018
E14: Total | G14: Total | H14: =H12+H13 -> 41126 | I14: =I12+I13 -> 66253 | J14: =J12+J13 -> 82003 | K14: =K12+K13 -> 75922 | L14: =TEXT(I14,"#.##0")&" Processos JULGADOS em "&F12 -> 66.253 Processos JULGADOS em 2018
E15: =IF($F$15>2017,"Eproc","Siapro") -> Eproc | F15: =$F$9+2 -> 2019 | G15: =IF($F$15>2018,"Eproc",IF($F$15=2018,"Eproc + Siapro","Siapro")) -> Eproc | H15: =SUMIF(Dados!$A$2:$G$171,$F$15,Dados!$C$2:$C$171) -> 35620 | I15: =SUMIF(Dados!$A$2:$G$171,$F$15,Dados!$D$2:$D$171) -> 17099 | J15: =VLOOKUP($F$15&$F$5,Dados!$A$2:$G$171,6,0) -> 31489 | K15: =VLOOKUP($F$15&$F$5,Dados!$A$2:$G$171,7,0) -> 31131 | L15: =TEXT(J17,"#.##0")&" Processos em TRAMITAÇÃO em Dezembro/"&F15 -> 83.221 Processos em TRAMITAÇÃO em Dezembro/2019
E16: Apolo | G16: Apolo | H16: =SUMIF(Dados!$A$2:$G$171,$F$15,Dados!$G$2:$G$171) -> 12253 | I16: =SUMIF(Dados!$A$2:$G$171,$F$15,Dados!$H$2:$H$171) -> 50954 | J16: =VLOOKUP($F$15&$F$5,Dados!$A$2:$K$171,10,0) -> 51732 | K16: =VLOOKUP($F$15&$F$5,Dados!$A$2:$K$171,11,0) -> 42129 | L16: =TEXT(H17,"#.##0")&" Processos 1ª DISTRIBUIÇÃO em "&F15 -> 47.873 Processos 1ª DISTRIBUIÇÃO em 2019
A17: 7 | B17: usedM2B | C17: =A17-1 -> 6 | D17: for PaMT | E17: Total | G17: Total | H17: =H15+H16 -> 47873 | I17: =I15+I16 -> 68053 | J17: =J15+J16 -> 83221 | K17: =K15+K16 -> 73260 | L17: =TEXT(I17,"#.##0")&" Processos JULGADOS em "&F15 -> 68.053 Processos JULGADOS em 2019
A18: =INDEX(ListaAnosSA,A17) -> 2019 | C18: =IF(C17=0,2012,INDEX(ListaAnosSA,C17)) -> 2018 | F18: Tramitação | H18: Distribuídos | J18: Julgados | M18: 18
A19: 14 | B19: Apolo | C19: =A19-1 -> 13 | D19: =IF($A$20<2018,"Siapro","Eproc") -> Eproc | E19: 201804-> | F19: Dezembro | G19: Novembro | H19: Dezembro | I19: Novembro | J19: Dezembro | K19: Novembro | M19: 19
A20: =INDEX(ListaAnosG,A19) -> 2019 | B20: Eproc | C20: =IF(C19=0,2005,INDEX(ListaAnosG,C19)) -> 2018 | D20: =IF($A$20>2018,"Eproc","Siapro") -> Eproc | E20: 010203 | F20: =VLOOKUP($C$18&"Dezembro",Dados!$A$2:$G$171,6,0) -> 4154 | G20: =VLOOKUP($C$18&"Novembro",Dados!$A$2:$G$171,6,0) -> 2930 | H20: =VLOOKUP($C$18&"Dezembro",Dados!$A$2:$G$171,4,0) -> 1256 | I20: =VLOOKUP($C$18&"Novembro",Dados!$A$2:$G$171,4,0) -> 638 | J20: =VLOOKUP($C$18&"Dezembro",Dados!$A$2:$G$171,5,0) -> 254 | K20: =VLOOKUP($C$18&"Novembro",Dados!$A$2:$G$171,5,0) -> 94 | M20: 20
M21: 21
D22: =IF(TA!$A$20<2018,"Siapro","Eproc") -> Eproc | M22: 22
M23: 23
A24: ="TRF2 - Processos em TRAMITAÇÃO em " & $A$20 -> TRF2 - Processos em TRAMITAÇÃO em 2019 | E24: tpTM2B_TM3B18 | F24: ="TRF2 - Série HISTÓRICA da TRAMITAÇÃO (DEZEMBRO)" -> TRF2 - Série HISTÓRICA da TRAMITAÇÃO (DEZEMBRO) | J24: tpTAT | L24: AnosG | M24: 24
A25: ="TRF2 - Processos DISTRIBUÍDOS (1ª Distribuição) em " & $A$20 -> TRF2 - Processos DISTRIBUÍDOS (1ª Distribuição) em 2019 | E25: tpDM2B_DM3B18 | F25: ="TRF2 - Série HISTÓRICA da 1ª DISTRIBUICÃO (TOTAL)" -> TRF2 - Série HISTÓRICA da 1ª DISTRIBUICÃO (TOTAL) | J25: tpDAT | L25: 2006 | M25: 25
A26: ="TRF2 - Processos JULGADOS em " & $A$20 -> TRF2 - Processos JULGADOS em 2019 | E26: tpJM2B_JM3B18 | F26: ="TRF2 - Série HISTÓRICA de JULGADOS (TOTAL)" -> TRF2 - Série HISTÓRICA de JULGADOS (TOTAL) | J26: tpJAT | L26: 2007 | M26: 26
L27: 2008 | M27: 27
A28: ="TRF2 / " & $A$20 & " - Tramitação no " & $D$22 -> TRF2 / 2019 - Tramitação no Eproc | E28: TM2B | F28: ="TRF2 - Tramitação no Siapro" -> TRF2 - Tramitação no Siapro | J28: TAT | L28: 2009 | M28: 28
A29: ="TRF2 / " & $A$20 & " - Tramitação no Apolo" -> TRF2 / 2019 - Tramitação no Apolo | F29: ="TRF2 - Tramitação no Apolo (A partir de Dez/2013)" -> TRF2 - Tramitação no Apolo (A partir de Dez/2013) | L29: 2010 | M29: 29
A30: ="TRF2 / " & $A$20 & " - TOTAL da Tramitação (" & $D$22 & " e Apolo)" -> TRF2 / 2019 - TOTAL da Tramitação (Eproc e Apolo) | F30: ="TRF2 - TOTAL da Tramitação (Siapro, Apolo e Eproc)" -> TRF2 - TOTAL da Tramitação (Siapro, Apolo e Eproc) | L30: 2011 | M30: 30
A31: ="TRF2 / " & $A$20 & " - Tramitação " & $D$22 & " + Apolo" -> TRF2 / 2019 - Tramitação Eproc + Apolo | F31: ="TRF2 - Tramitação no Eproc (A partir de Mai/2018)" -> TRF2 - Tramitação no Eproc (A partir de Mai/2018) | L31: 2012 | M31: 31
L32: 2013 | M32: 32
A33: =IF($A$20=2017,$A$49,$A$48) -> TRF2 / 2019 - Distribuídos para o Eproc | E33: DM2B | F33: ="TRF2 - 1ª Distribuição para o Siapro (Somente até Mar/2018)" -> TRF2 - 1ª Distribuição para o Siapro (Somente até Mar/2018) | J33: DAT | L33: 2014 | M33: 33
A34: ="TRF2 / " & $A$20 & " - Distribuídos para o Apolo" -> TRF2 / 2019 - Distribuídos para o Apolo | F34: ="TRF2 - 1ª Distribuição para o Apolo (A partir de Dez/2013)" -> TRF2 - 1ª Distribuição para o Apolo (A partir de Dez/2013) | L34: 2015 | M34: 34
A35: ="TRF2 / " & $A$20 & " - TOTAL de Distribuídos (" & $D$22 & " e Apolo)" -> TRF2 / 2019 - TOTAL de Distribuídos (Eproc e Apolo) | F35: ="TRF2 - TOTAL da 1ª Distribuição (Siapro, Apolo e Eproc)" -> TRF2 - TOTAL da 1ª Distribuição (Siapro, Apolo e Eproc) | L35: 2016 | M35: 35
A36: ="TRF2 / " & $A$20 & " - Distribuídos " & $D$22 & " + Apolo" -> TRF2 / 2019 - Distribuídos Eproc + Apolo | F36: ="TRF2 - 1ª Distribuição para o Eproc (A partir de Mai/2018)" -> TRF2 - 1ª Distribuição para o Eproc (A partir de Mai/2018) | L36: 2017 | M36: 36
L37: 2018 | M37: 37
A38: ="TRF2 / " & $A$20 & " - Julgados no " & $D$22 -> TRF2 / 2019 - Julgados no Eproc | E38: JM2B | F38: ="TRF2 - Julgados no Siapro (Somente até Mar/2018)" -> TRF2 - Julgados no Siapro (Somente até Mar/2018) | J38: JAT | L38: 2019 | M38: 38
A39: =IF($A$20=2013,$A$52,$A$51) -> TRF2 / 2019 - Julgados no Apolo | F39: ="TRF2 - Julgados no Apolo (A partir de Jan/2014)" -> TRF2 - Julgados no Apolo (A partir de Jan/2014) | M39: 39
A40: ="TRF2 / " & $A$20 & " - TOTAL de Julgados (" & $D$22 & " e Apolo)" -> TRF2 / 2019 - TOTAL de Julgados (Eproc e Apolo) | F40: ="TRF2 - TOTAL de Julgados (Siapro, Apolo e Eproc)" -> TRF2 - TOTAL de Julgados (Siapro, Apolo e Eproc) | M40: 40
A41: ="TRF2 / " & $A$20 & " - Julgados " & $D$22 & " + Apolo" -> TRF2 / 2019 - Julgados Eproc + Apolo | F41: ="TRF2 - Julgados no Eproc (Somente a partir de Jul/2018)" -> TRF2 - Julgados no Eproc (Somente a partir de Jul/2018) | M41: 41
M42: 42
A43: ="TRAMITAÇÃO no Siapro em " & $A$20 & " (% Variação Mensal)" -> TRAMITAÇÃO no Siapro em 2019 (% Variação Mensal) | E43: TMS | M43: 43
A44: ="DISTRIBUÍDOS para o Siapro em " & $A$20 & " (Acumulado Mensal)" -> DISTRIBUÍDOS para o Siapro em 2019 (Acumulado Mensal) | E44: DMS | M44: 44
A45: ="JULGADOS no Siapro em " & $A$20 & " (Acumulado Mensal)" -> JULGADOS no Siapro em 2019 (Acumulado Mensal) | E45: JMS | M45: 45
A46: A | B46: B | C46: C | D46: D | E46: E | F46: F | G46: G | H46: H | I46: I | J46: J | K46: K | L46: L | M46: 46
A47: ESCOLHAS: | M47: 47
A48: ="TRF2 / " & $A$20 & " - Distribuídos para o " & $D$22 -> TRF2 / 2019 - Distribuídos para o Eproc | M48: 48
A49: ="TRF2 / " & $A$20 & " - NÃO HOUVE Distribuídos para o " & $D$22 -> TRF2 / 2019 - NÃO HOUVE Distribuídos para o Eproc | M49: 49
M50: 50
A51: ="TRF2 / " & $A$20 & " - Julgados no Apolo" -> TRF2 / 2019 - Julgados no Apolo | M51: 51
A52: ="TRF2 / " & $A$20 & " - Julgados no Apolo (A partir de Jan/2014)" -> TRF2 / 2019 - Julgados no Apolo (A partir de Jan/2014) | M52: 52
M53: 53
M54: 54
A55: Modificações: | M55: 55
A56: Até | B56: 201505 | C56: 2015-06-11 | D56: GP3AT(3) | M56: 56
A57: Em | B57: 2015/07 | C57: 2015-08-21 | D57: GP3AT(9) | E57: pwdatu | M57: 57
A58: Até | B58: 2015/07 | C58: 2015-09-01 | D58: (A+V+M) juntos | M58: 58
A59: Depois | D59: (A)(M)(V) | M59: 59
A60: Em | B60: 2018/10 | C60: 2018-11-28 | D60: Apolo TP=JUD e TJ=2ºGrau para 2018 | M60: 60
M61: 61
M62: 62
M63: 63
M64: 64
M65: 65
M66: 66
M67: 67
A68: GJaM2B | B68: destiny | C68: <=used by Sub ig_AnoGM3B18 when any G??M3B18 <>2018 (Initiate for G??M2B) | M68: 68
A69: GJaM3B18 | B69: destiny | C69: <=used by Sub ig_AnoGM2B when any G??M2B=2018 (Initiate for G??M2B) | M69: 69

Sheet Dados (hidden)
A1: Coluna Auxiliar1 | B1: Ano | C1: Mês | D1: Dist._sE | E1: Julg._sE | F1: TRAM_sE | G1: TA_sE | H1: Dist._A | I1: Julg._A | J1: TRAM_A | K1: TA_A | L1: Dist._sE Acum | M1: Julg._sE Acum | N1: Dist._A Acum | O1: Julg._A Acum | P1: M_A | Q1: M_A Acum | R1: V_A | S1: V_A Acum | T1: D+M+V Acum | U1: M_E | V1: M_E Acum | W1: Dse | X1: Jse | Y1: TRSe | Z1: TASe | AA1: DA | AB1: JA | AC1: TRA | AD1: TAA
A2: =B2&C2 -> 2019Janeiro | B2: 2019 | C2: Janeiro | D2: 1464 | E2: 86 | F2: 5594 | G2: 5587 | H2: 2228 | I2: =2216-1 -> 2215 | J2: 77634 | K2: 71367 | L2: =D2 -> 1464 | M2: =E2 -> 86 | N2: =H2 -> 2228 | O2: =I2 -> 2215 | P2: 0 | Q2: =P2 -> 0 | R2: 7 | S2: =R2 -> 7 | T2: =N2+Q2+S2 -> 2235 | U2: 0 | V2: =U2 -> 0
A3: 2019Fevereiro | B3: 2019 | C3: Fevereiro | D3: 2070 | E3: 368 | F3: 7517 | G3: 7502 | H3: 1905 | I3: =6509+1 -> 6510 | J3: 75155 | K3: 68481 | L3: =L2+D3 -> 3534 | M3: =M2+E3 -> 454 | N3: =N2+H3 -> 4133 | O3: 8725 | P3: 0 | Q3: =Q2+P3 -> 0 | R3: 23 | S3: =S2+R3 -> 30 | T3: 4163 | U3: 0 | V3: =V2+U3 -> 0
A4: 2019Março | B4: 2019 | C4: Março | D4: 1711 | E4: 327 | F4: 9051 | G4: =9033+2 -> 9035 | H4: 1203 | I4: =3666+1 -> 3667 | J4: 72009 | K4: 64860 | L4: 5245 | M4: 781 | N4: 5336 | O4: 12392 | P4: 0 | Q4: 0 | R4: 15 | S4: 45 | T4: 5381 | U4: 0 | V4: 0
A5: 2019Abril | B5: 2019 | C5: Abril | D5: 2261 | E5: 540 | F5: =11183-2 -> 11181 | G5: 11162 | H5: 1292 | I5: 4327 | J5: 71510 | K5: 64333 | L5: 7506 | M5: 1321 | N5: 6628 | O5: 16719 | P5: 0 | Q5: 0 | R5: 15 | S5: 60 | T5: 6688 | U5: 0 | V5: 0
A6: 2019Maio | B6: 2019 | C6: Maio | D6: 3218 | E6: =602-1 -> 601 | F6: 13949 | G6: 13919 | H6: 1391 | I6: =5071+3 -> 5074 | J6: 68646 | K6: 61176 | L6: 10724 | M6: 1922 | N6: 8019 | O6: 21793 | P6: 0 | Q6: 0 | R6: 15 | S6: 75 | T6: 8094 | U6: 0 | V6: 0
A7: 2019Junho | B7: 2019 | C7: Junho | D7: 2876 | E7: 822 | F7: 16463 | G7: 16417 | H7: 840 | I7: =5255-1+1 -> 5255 | J7: 66611 | K7: 58992 | L7: 13600 | M7: 2744 | N7: 8859 | O7: 27048 | P7: 0 | Q7: 0 | R7: 9 | S7: 84 | T7: 8943 | U7: 0 | V7: 0
A8: 2019Julho | B8: 2019 | C8: Julho | D8: =3793-1 -> 3792 | E8: =1591-1 -> 1590 | F8: =19627+2 -> 19629 | G8: =19569+2 -> 19571 | H8: 913 | I8: =5011+1+1-1 -> 5012 | J8: =64135-2 -> 64133 | K8: =56030-2 -> 56028 | L8: 17392 | M8: 4334 | N8: 9772 | O8: 32060 | P8: 0 | Q8: 0 | R8: 11 | S8: 95 | T8: 9867 | U8: 0 | V8: 0
A9: 2019Agosto | B9: 2019 | C9: Agosto | D9: 3935 | E9: =1759-2 -> 1757 | F9: =22758+1 -> 22759 | G9: =22680+1 -> 22681 | H9: 732 | I9: =4115+1-6 -> 4110 | J9: =61220-8 -> 61212 | K9: =52669-8 -> 52661 | L9: 21327 | M9: 6091 | N9: 10504 | O9: 36170 | P9: 0 | Q9: 0 | R9: 23 | S9: 118 | T9: 10622 | U9: 0 | V9: 0
A10: 2019Setembro | B10: 2019 | C10: Setembro | D10: =4041-2 -> 4039 | E10: 2270 | F10: =25723-1 -> 25722 | G10: =25587-1 -> 25586 | H10: 558 | I10: 4327 | J10: =58452-13 -> 58439 | K10: =49548-13 -> 49535 | L10: 25366 | M10: 8361 | N10: 11062 | O10: 40497 | P10: 0 | Q10: 0 | R10: 13 | S10: 131 | T10: 11193 | U10: 0 | V10: 0
A11: 2019Outubro | B11: 2019 | C11: Outubro | D11: =4141-2 -> 4139 | E11: =2995-3 -> 2992 | F11: =28484-2 -> 28482 | G11: =28259-2 -> 28257 | H11: 552 | I11: =3549-1-5 -> 3543 | J11: =55492-13 -> 55479 | K11: =46516-13 -> 46503 | L11: 29505 | M11: 11353 | N11: 11614 | O11: 44040 | P11: 0 | Q11: 0 | R11: 14 | S11: 145 | T11: 11759 | U11: 0 | V11: 0
A12: 2019Novembro | B12: 2019 | C12: Novembro | D12: =3519-2 -> 3517 | E12: =2840-1 -> 2839 | F12: =30667-4 -> 30663 | G12: =30377-4 -> 30373 | H12: 357 | I12: =3568+1+1-2 -> 3568 | J12: =53256-8 -> 53248 | K12: =43713-8 -> 43705 | L12: 33022 | M12: 14192 | N12: 11971 | O12: 47608 | P12: 0 | Q12: 0 | R12: 17 | S12: 162 | T12: 12133 | U12: 2 | V12: 2
A13: 2019Dezembro | B13: 2019 | C13: Dezembro | D13: =2599-1 -> 2598 | E13: 2907 | F13: =31494-5 -> 31489 | G13: =31136-5 -> 31131 | H13: 282 | I13: 3346 | J13: =51740-8 -> 51732 | K13: =42137-8 -> 42129 | L13: 35620 | M13: 17099 | N13: 12253 | O13: 50954 | P13: 0 | Q13: 0 | R13: 10 | S13: 172 | T13: 12425 | U13: 0 | V13: 2 | W13: =SUM(D2:D13) -> 35620 | X13: =SUM(E2:E13) -> 17099 | Y13: =SUM(F2:F13) -> 222499 | Z13: =SUM(G2:G13) -> 221221 | AA13: =SUM(H2:H13) -> 12253 | AB13: =SUM(I2:I13) -> 50954 | AC13: =SUM(J2:J13) -> 775808 | AD13: =SUM(K2:K13) -> 679770
A14: =B14&C14 -> 2018Janeiro | B14: 2018 | C14: Janeiro | D14: 0 | E14: 360 | F14: 8523 | G14: 8045 | H14: 2629 | I14: 2110 | J14: 81555 | K14: 77335 | L14: =D14 -> 0 | M14: =E14 -> 360 | N14: =H14 -> 2629 | O14: =I14 -> 2110 | P14: 4 | Q14: =P14 -> 4 | R14: 327 | S14: =R14 -> 327 | T14: =N14+Q14+S14 -> 2960
A15: 2018Fevereiro | B15: 2018 | C15: Fevereiro | D15: 0 | E15: 755 | F15: 8115 | G15: 7646 | H15: 2845 | I15: 4617 | J15: 81439 | K15: 77175 | L15: =L14+D15 -> 0 | M15: =M14+E15 -> 1115 | N15: =N14+H15 -> 5474 | O15: =O14+I15 -> 6727 | P15: 35 | Q15: =Q14+P15 -> 39 | R15: 98 | S15: =S14+R15 -> 425 | T15: 5938
A16: 2018Março | B16: 2018 | C16: Março | D16: 1 | E16: 306 | F16: 160 | G16: 160 | H16: 2732 | I16: 5330 | J16: 87839 | K16: 83086 | L16: =L15+D16 -> 1 | M16: 1421 | N16: 8206 | O16: 12057 | P16: 7823 | Q16: 7862 | R16: 38 | S16: 463 | T16: 16531
A17: 2018Abril | B17: 2018 | C17: Abril | D17: 0 | E17: 0 | F17: 0 | G17: 0 | H17: 3126 | I17: 5785 | J17: 86634 | K17: 81788 | L17: =D17 -> 0 | M17: =E17 -> 0 | N17: 11332 | O17: 17842 | P17: 103 | Q17: 7965 | R17: 8 | S17: 471 | T17: 19768 | U17: 0 | V17: =U17 -> 0
A18: 2018Maio | B18: 2018 | C18: Maio | D18: 26 | E18: 0 | F18: 26 | G18: 26 | H18: 3430 | I18: 6809 | J18: 85050 | K18: 80433 | L18: =L17+D18 -> 26 | M18: =M17+E18 -> 0 | N18: 14762 | O18: 24651 | P18: 12 | Q18: 7977 | R18: 2 | S18: 473 | T18: 23212 | U18: 0 | V18: =V17+U18 -> 0
A19: 2018Junho | B19: 2018 | C19: Junho | D19: 102 | E19: 0 | F19: 128 | G19: 128 | H19: 2937 | I19: 5708 | J19: 83934 | K19: 79461 | L19: =L18+D19 -> 128 | M19: =M18+E19 -> 0 | N19: 17699 | O19: 30359 | P19: 5 | Q19: 7982 | R19: 3 | S19: 476 | T19: 26157 | U19: 0 | V19: 0
A20: 2018Julho | B20: 2018 | C20: Julho | D20: 221 | E20: 2 | F20: 349 | G20: 349 | H20: 3696 | I20: 5797 | J20: 82900 | K20: 78255 | L20: 349 | M20: 2 | N20: 21395 | O20: 36156 | P20: 2 | Q20: 7984 | R20: 3 | S20: 479 | T20: 29858 | U20: 0 | V20: 0
A21: 2018Agosto | B21: 2018 | C21: Agosto | D21: 441 | E21: 12 | F21: 787 | G21: 787 | H21: 3792 | I21: 6060 | J21: 82869 | K21: 78167 | L21: 790 | M21: 14 | N21: 25187 | O21: 42216 | P21: 0 | Q21: 7984 | R21: 1 | S21: 480 | T21: 33651 | U21: 0 | V21: 0
A22: 2018Setembro | B22: 2018 | C22: Setembro | D22: 450 | E22: 41 | F22: 1226 | G22: 1225 | H22: 2809 | I22: 6273 | J22: 80805 | K22: 75916 | L22: 1240 | M22: 55 | N22: 27996 | O22: 48489 | P22: 0 | Q22: 7984 | R22: 13 | S22: 493 | T22: 36473 | U22: 0 | V22: 0
A23: 2018Outubro | B23: 2018 | C23: Outubro | D23: 1110 | E23: 77 | F23: 2314 | G23: 2311 | H23: 3041 | I23: 6292 | J23: 79116 | K23: 73907 | L23: 2350 | M23: 132 | N23: 31037 | O23: 54781 | P23: 0 | Q23: 7984 | R23: 13 | S23: 506 | T23: 39527 | U23: 0 | V23: 0
A24: =B24&C24 -> 2018Novembro | B24: 2018 | C24: Novembro | D24: 638 | E24: 94 | F24: 2930 | G24: 2926 | H24: 3745 | I24: 5394 | J24: 79405 | K24: 73934 | L24: 2988 | M24: 226 | N24: 34782 | O24: 60175 | P24: 0 | Q24: 7984 | R24: 20 | S24: 526 | T24: 43292 | U24: 0 | V24: 0
A25: =B25&C25 -> 2018Dezembro | B25: 2018 | C25: Dezembro | D25: 1256 | E25: 254 | F25: 4154 | G25: 4149 | H25: 2099 | I25: 4177 | J25: 77849 | K25: 71773 | L25: 4244 | M25: 480 | N25: 36881 | O25: 64352 | P25: 0 | Q25: 7984 | R25: 14 | S25: 540 | T25: 45405 | W25: =SUM(D14:D25) -> 4245 | X25: =SUM(E14:E25) -> 1901 | Y25: =SUM(F14:F25) -> 28712 | Z25: =SUM(G14:G25) -> 27752 | AA25: 36881 | AB25: 64352 | AC25: 989395 | AD25: 931230
A26: =B26&C26 -> 2017Janeiro | B26: 2017 | C26: Janeiro | D26: 0 | E26: 180 | F26: 16135 | G26: 14955 | H26: 2164 | I26: 1153 | J26: 80666 | K26: 75463 | L26: =D26 -> 0 | M26: =E26 -> 180 | N26: =H26 -> 2164 | O26: =I26 -> 1153 | P26: 9 | Q26: =P26 -> 9 | R26: 6 | S26: =R26 -> 6 | T26: =N26+Q26+S26 -> 2179
A27: =B27&C27 -> 2017Fevereiro | B27: 2017 | C27: Fevereiro | D27: 0 | E27: 475 | F27: 15152 | G27: 14005 | H27: 2887 | I27: 5075 | J27: 79927 | K27: 74573 | L27: =L26+D27 -> 0 | M27: 655 | N27: =N26+H27 -> 5051 | O27: 6228 | P27: 15 | Q27: =Q26+P27 -> 24 | R27: 67 | S27: =S26+R27 -> 73 | T27: =N27+Q27+S27 -> 5148
A28: 2017Março | B28: 2017 | C28: Março | D28: 0 | E28: 735 | F28: 12778 | G28: 11842 | H28: 3892 | I28: 5110 | J28: 78756 | K28: 73274 | L28: 0 | M28: 1390 | N28: 8943 | O28: 11338 | P28: 10 | Q28: 34 | R28: 24 | S28: 97 | T28: 9074
A29: 2017Abril | B29: 2017 | C29: Abril | D29: 0 | E29: 700 | F29: 12105 | G29: 11260 | H29: 3022 | I29: 4481 | J29: 79139 | K29: 73830 | L29: 0 | M29: 2090 | N29: 11965 | O29: 15819 | P29: 1 | Q29: 35 | R29: 1 | S29: 98 | T29: 12098
A30: 2017Maio | B30: 2017 | C30: Maio | D30: 0 | E30: 733 | F30: 11377 | G30: 10556 | H30: 4262 | I30: 5892 | J30: 79110 | K30: 73710 | L30: 0 | M30: 2823 | N30: 16227 | O30: 21711 | P30: 16 | Q30: 51 | R30: 27 | S30: 125 | T30: 16403
A31: 2017Junho | B31: 2017 | C31: Junho | D31: 0 | E31: 668 | F31: 10766 | G31: 10101 | H31: 3635 | I31: 5491 | J31: 79461 | K31: 74030 | L31: 0 | M31: 3491 | N31: =N30+H31 -> 19862 | O31: 27202 | P31: 16 | Q31: 67 | R31: 21 | S31: 146 | T31: =N31+Q31+S31 -> 20075
A32: 2017Julho | B32: 2017 | C32: Julho | D32: 0 | E32: 663 | F32: 10262 | G32: 9643 | H32: 3913 | I32: 5533 | J32: 79894 | K32: 74403 | L32: 0 | M32: 4154 | N32: 23775 | O32: 32735 | P32: 21 | Q32: 88 | R32: 11 | S32: 157 | T32: 24020
A33: 2017Agosto | B33: 2017 | C33: Agosto | D33: 0 | E33: 890 | F33: 9752 | G33: 9251 | H33: 4248 | I33: 6063 | J33: 80079 | K33: 74548 | L33: 0 | M33: 5044 | N33: 28023 | O33: 38798 | P33: 6 | Q33: 94 | R33: 50 | S33: 207 | T33: 28324
A34: 2017Setembro | B34: 2017 | C34: Setembro | D34: 0 | E34: 632 | F34: 9373 | G34: 8868 | H34: 3957 | I34: 5401 | J34: 80978 | K34: 75369 | L34: 0 | M34: 5676 | N34: 31980 | O34: 44199 | P34: 44 | Q34: 138 | R34: 2 | S34: 209 | T34: 32327
A35: 2017Outubro | B35: 2017 | C35: Outubro | D35: 0 | E35: 803 | F35: 9497 | G35: 9018 | H35: 4194 | I35: 5180 | J35: 81450 | K35: 77255 | L35: 0 | M35: 6479 | N35: 36174 | O35: 49379 | P35: 7 | Q35: 145 | R35: 3 | S35: 212 | T35: 36531
A36: 2017Novembro | B36: 2017 | C36: Novembro | D36: 0 | E36: 707 | F36: 9144 | G36: 8663 | H36: 3220 | I36: 4700 | J36: 81954 | K36: 77604 | L36: 0 | M36: 7186 | N36: 39394 | O36: 54079 | P36: 22 | Q36: 167 | R36: 256 | S36: 468 | T36: 40029
A37: 2017Dezembro | B37: 2017 | C37: Dezembro | D37: 0 | E37: 418 | F37: 8724 | G37: 8246 | H37: 2614 | I37: 3787 | J37: 80525 | K37: 76077 | L37: 0 | M37: 7604 | N37: 42008 | O37: 57866 | P37: 60 | Q37: 227 | R37: 258 | S37: 726 | T37: 42961 | W37: =SUM(D26:D37) -> 0 | X37: =SUM(E26:E37) -> 7604 | Y37: =SUM(F26:F37) -> 135065 | Z37: =SUM(G26:G37) -> 126408 | AA37: =SUM(H26:H37) -> 42008 | AB37: =SUM(I26:I37) -> 57866 | AC37: =SUM(J26:J37) -> 961939 | AD37: =SUM(K26:K37) -> 900136
A38: =B38&C38 -> 2016Janeiro | B38: 2016 | C38: Janeiro | D38: 0 | E38: 825 | F38: 37599 | G38: 35000 | H38: 3413 | I38: 2946 | J38: 76839 | K38: 73708 | L38: =D38 -> 0 | M38: =E38 -> 825 | N38: =H38 -> 3413 | O38: =I38 -> 2946 | P38: 10 | Q38: =P38 -> 10 | R38: 0 | S38: =R38 -> 0 | T38: =N38+Q38+S38 -> 3423
A39: =B39&C39 -> 2016Fevereiro | B39: 2016 | C39: Fevereiro | D39: 0 | E39: 983 | F39: 36419 | G39: 33459 | H39: 3395 | I39: 3374 | J39: 78079 | K39: 74939 | L39: =L38+D39 -> 0 | M39: =M38+E39 -> 1808 | N39: =N38+H39 -> 6808 | O39: =O38+I39 -> 6320 | P39: 18 | Q39: =Q38+P39 -> 28 | R39: 9 | S39: =S38+R39 -> 9 | T39: =N39+Q39+S39 -> 6845
A40: 2016Março | B40: 2016 | C40: Março | D40: 2 | E40: 1296 | F40: 35215 | G40: 32465 | H40: 4348 | I40: 4527 | J40: 74366 | K40: 71192 | L40: 2 | M40: 3104 | N40: 11156 | O40: 10847 | P40: 39 | Q40: 67 | R40: 3 | S40: 12 | T40: 11235
A41: 2016Abril | B41: 2016 | C41: Abril | D41: 0 | E41: 1034 | F41: 32994 | G41: 30402 | H41: 4166 | I41: 4552 | J41: 76202 | K41: 72981 | L41: 2 | M41: 4138 | N41: 15322 | O41: 15399 | P41: 19 | Q41: 86 | R41: 11 | S41: 23 | T41: 15431
A42: 2016Maio | B42: 2016 | C42: Maio | D42: 0 | E42: 909 | F42: 29689 | G42: 27149 | H42: 4050 | I42: 3890 | J42: 78084 | K42: 74767 | L42: 2 | M42: 5047 | N42: 19372 | O42: 19289 | P42: 9 | Q42: 95 | R42: 23 | S42: 46 | T42: 19513
A43: 2016Junho | B43: 2016 | C43: Junho | D43: 0 | E43: 722 | F43: 27798 | G43: 25575 | H43: 4395 | I43: 5403 | J43: 79893 | K43: 76530 | L43: =L42+D43 -> 2 | M43: =M42+E43 -> 5769 | N43: =N42+H43 -> 23767 | O43: =O42+I43 -> 24692 | P43: 17 | Q43: =Q42+P43 -> 112 | R43: 7 | S43: 53 | T43: =N43+Q43+S43 -> 23932
A44: 2016Julho | B44: 2016 | C44: Julho | D44: 0 | E44: 713 | F44: 26931 | G44: 24718 | H44: 4153 | I44: 5445 | J44: 81557 | K44: 78182 | L44: 2 | M44: 6482 | N44: 27920 | O44: 30137 | P44: 18 | Q44: 130 | R44: 1 | S44: 54 | T44: 28104
A45: 2016Agosto | B45: 2016 | C45: Agosto | D45: 0 | E45: 292 | F45: 25788 | G45: 23697 | H45: 2673 | I45: 2153 | J45: 82918 | K45: 79442 | L45: 2 | M45: 6774 | N45: 30593 | O45: 32290 | P45: 1 | Q45: 131 | R45: 2 | S45: 56 | T45: 30780
A46: 2016Setembro | B46: 2016 | C46: Setembro | D46: 0 | E46: 762 | F46: 22327 | G46: 20717 | H46: 4338 | I46: 3945 | J46: 83598 | K46: 79818 | L46: 2 | M46: 7536 | N46: 34931 | O46: =O45+I46 -> 36235 | P46: 11 | Q46: 142 | R46: 6 | S46: 62 | T46: 35135
A47: 2016Outubro | B47: 2016 | C47: Outubro | D47: 0 | E47: 757 | F47: 20445 | G47: 18862 | H47: 3755 | I47: 5822 | J47: 83662 | K47: 78932 | L47: 2 | M47: 8293 | N47: 38686 | O47: =O46+I47 -> 42057 | P47: 27 | Q47: 169 | R47: 9 | S47: 71 | T47: 38926
A48: 2016Novembro | B48: 2016 | C48: Novembro | D48: 0 | E48: 814 | F48: 18663 | G48: 17216 | H48: 3530 | I48: 3695 | J48: 81676 | K48: 76704 | L48: 2 | M48: 9107 | N48: 42216 | O48: =O47+I48 -> 45752 | P48: 25 | Q48: 194 | R48: 13 | S48: 84 | T48: 42494
A49: 2016Dezembro | B49: 2016 | C49: Dezembro | D49: 0 | E49: 577 | F49: 16985 | G49: 15697 | H49: 2597 | I49: 4306 | J49: 80830 | K49: 75705 | L49: 2 | M49: 9684 | N49: 44813 | O49: 50058 | P49: 14 | Q49: 208 | R49: 1 | S49: 85 | T49: 45106 | W49: =SUM(D38:D49) -> 2 | X49: 9684 | Y49: 330853 | Z49: 304957 | AA49: 44813 | AB49: 50058 | AC49: =SUM(J38:J49) -> 957704 | AD49: =SUM(K38:K49) -> 912900
A50: =B50&C50 -> 2015Janeiro | B50: 2015 | C50: Janeiro | D50: 610 | E50: 1630 | F50: 74019 | G50: 69960 | H50: 2803 | I50: 2774 | J50: 49003 | K50: 48967 | L50: =D50 -> 610 | M50: =E50 -> 1630 | N50: =H50 -> 2803 | O50: =I50 -> 2774 | R50: 3409 | S50: =R50 -> 3409 | T50: =N50+Q50+S50 -> 6212
A51: =B51&C51 -> 2015Fevereiro | B51: 2015 | C51: Fevereiro | D51: 503 | E51: 2492 | F51: 72305 | G51: 68291 | H51: 3432 | I51: 2815 | J51: 50153 | K51: 50103 | L51: =L50+D51 -> 1113 | M51: 4122 | N51: =N50+H51 -> 6235 | O51: 5589 | R51: 76 | S51: =S50+R51 -> 3485 | T51: =N51+Q51+S51 -> 9720
A52: 2015Março | B52: 2015 | C52: Março | D52: 12 | E52: 2749 | F52: 69119 | G52: 67511 | H52: 5951 | I52: 3805 | J52: 54273 | K52: 54179 | L52: 1125 | M52: 6871 | N52: 12186 | O52: 9394 | P52: 60 | Q52: =P52 -> 60 | R52: 17 | S52: =S51+R52 -> 3502 | T52: 15748
A53: 2015Abril | B53: 2015 | C53: Abril | D53: 13 | E53: 2586 | F53: 62012 | G53: 61073 | H53: 4223 | I53: 4150 | J53: 59703 | K53: 57683 | L53: 1138 | M53: 9457 | N53: 16409 | O53: 13544 | P53: 4329 | Q53: =Q52+P53 -> 4389 | R53: 88 | S53: 3590 | T53: 24388
A54: 2015Maio | B54: 2015 | C54: Maio | D54: 13 | E54: 2326 | F54: 56600 | G54: 55654 | H54: 5246 | I54: 3553 | J54: 64869 | K54: 61970 | L54: 1151 | M54: 11783 | N54: 21655 | O54: 17097 | P54: 2270 | Q54: 6659 | R54: 130 | S54: 3720 | T54: 32034
A55: 2015Junho | B55: 2015 | C55: Junho | D55: 0 | E55: 2094 | F55: 53918 | G55: 52971 | H55: 5209 | I55: 4550 | J55: 67107 | K55: 64128 | L55: 1151 | M55: 13877 | N55: 26864 | O55: 21647 | P55: 362 | Q55: 7021 | R55: 247 | S55: 3967 | T55: 37852
A56: 2015Julho | B56: 2015 | C56: Julho | D56: 1 | E56: 1956 | F56: 51132 | G56: 50055 | H56: 4921 | I56: 4915 | J56: 68642 | K56: 65629 | L56: 1152 | M56: 15833 | N56: 31785 | O56: 26562 | P56: 221 | Q56: 7242 | R56: 41 | S56: 4008 | T56: 43035
A57: 2015Agosto | B57: 2015 | C57: Agosto | D57: 1 | E57: 1595 | F57: 48962 | G57: 47250 | H57: 3778 | I57: 3967 | J57: 69072 | K57: 66041 | L57: 1153 | M57: 17428 | N57: 35563 | O57: 30529 | P57: 238 | Q57: 7480 | R57: 50 | S57: 4058 | T57: 47101
A58: 2015Setembro | B58: 2015 | C58: Setembro | D58: 0 | E58: 1374 | F58: 46557 | G58: 44498 | H58: 4012 | I58: 4075 | J58: 70376 | K58: 67338 | L58: 1153 | M58: 18802 | N58: 39575 | O58: 34604 | P58: 57 | Q58: 7537 | R58: 45 | S58: 4103 | T58: 51215
A59: 2015Outubro | B59: 2015 | C59: Outubro | D59: 1 | E59: 1585 | F59: 43858 | G59: 41471 | H59: 4745 | I59: 4418 | J59: 72864 | K59: 69806 | L59: 1154 | M59: 20387 | N59: 44320 | O59: 39022 | P59: 32 | Q59: 7569 | R59: 8 | S59: 4111 | T59: 56000
A60: 2015Novembro | B60: 2015 | C60: Novembro | D60: 6 | E60: 952 | F60: 41779 | G60: 39069 | H60: 4365 | I60: 4360 | J60: 74381 | K60: 71292 | L60: 1160 | M60: 21339 | N60: 48685 | O60: 43382 | P60: 14 | Q60: 7583 | R60: 5 | S60: 4116 | T60: 60384
A61: 2015Dezembro | B61: 2015 | C61: Dezembro | D61: 4 | E61: 1154 | F61: 39179 | G61: 36665 | H61: 2933 | I61: 3775 | J61: 75365 | K61: 72256 | L61: 1164 | M61: 22493 | N61: 51618 | O61: 47157 | P61: 5 | Q61: 7588 | R61: 29 | S61: 4145 | T61: 63351 | W61: =SUM(D50:D61) -> 1164 | X61: =SUM(E50:E61) -> 22493 | Y61: 659440 | Z61: 634468 | AA61: 51618 | AB61: 47157 | AC61: =SUM(J50:J61) -> 775808 | AD61: =SUM(K50:K61) -> 749392
A62: =B62&C62 -> 2014Janeiro | B62: 2014 | C62: Janeiro | D62: 3152 | E62: 4628 | F62: 108747 | G62: 105267 | H62: 1258 | I62: 1 | J62: 1567 | K62: 1567 | L62: =D62 -> 3152 | M62: =E62 -> 4628 | N62: =H62 -> 1258 | O62: =I62 -> 1 | R62: 1 | S62: =R62 -> 1 | T62: =N62+Q62+S62 -> 1259
A63: =B63&C63 -> 2014Fevereiro | B63: 2014 | C63: Fevereiro | D63: 2562 | E63: 7698 | F63: 107149 | G63: 103719 | H63: 2591 | I63: 67 | J63: 4158 | K63: 4158 | L63: =L62+D63 -> 5714 | M63: =M62+E63 -> 12326 | N63: =N62+H63 -> 3849 | O63: =O62+I63 -> 68 | S63: =S62+R63 -> 1 | T63: =N63+Q63+S63 -> 3850
A64: 2014Março | B64: 2014 | C64: Março | D64: 2508 | E64: 5829 | F64: 105188 | G64: 101641 | H64: 2136 | I64: 151 | J64: 6294 | K64: 6294 | L64: 8222 | M64: 18155 | N64: 5985 | O64: 219 | S64: =S63+R64 -> 1 | T64: =N64+Q64+S64 -> 5986
A65: 2014Abril | B65: 2014 | C65: Abril | D65: 1798 | E65: 5421 | F65: 102976 | G65: 99367 | H65: 4945 | I65: 536 | J65: 11230 | K65: 11230 | L65: 10020 | M65: 23576 | N65: 10930 | O65: 755 | S65: 1 | T65: 10931
A66: 2014Maio | B66: 2014 | C66: Maio | D66: 1723 | E66: 5522 | F66: 100335 | G66: 96533 | H66: 4400 | I66: 721 | J66: 15482 | K66: 15482 | L66: 11743 | M66: 29098 | N66: 15330 | O66: 1476 | S66: 1 | T66: 15331
A67: 2014Junho | B67: 2014 | C67: Junho | D67: 1570 | E67: 4287 | F67: 97366 | G67: 93448 | H67: 3306 | I67: 1607 | J67: 18657 | K67: 18657 | L67: 13313 | M67: 33385 | N67: 18636 | O67: 3083 | R67: 115 | S67: 116 | T67: 18752
A68: 2014Julho | B68: 2014 | C68: Julho | D68: 1282 | E68: 5251 | F68: 94078 | G68: 89973 | H68: 5753 | I68: 3359 | J68: 24466 | K68: 24466 | L68: 14595 | M68: 38636 | N68: 24389 | O68: 6442 | R68: 271 | S68: 387 | T68: 24776
A69: 2014Agosto | B69: 2014 | C69: Agosto | D69: 1312 | E69: 4970 | F69: 91091 | G69: 87015 | H69: 6870 | I69: 3543 | J69: 31093 | K69: 31091 | L69: 15907 | M69: 43606 | N69: 31259 | O69: 9985 | R69: 32 | S69: 419 | T69: 31678
A70: 2014Setembro | B70: 2014 | C70: Setembro | D70: 1572 | E70: 4552 | F70: 88449 | G70: 84401 | H70: 4579 | I70: 5164 | J70: 34938 | K70: 34931 | L70: 17479 | M70: 48158 | N70: 35838 | O70: 15149 | S70: 419 | T70: 36257
A71: 2014Outubro | B71: 2014 | C71: Outubro | D71: 1030 | E71: 4570 | F71: 85008 | G71: 81001 | H71: 4598 | I71: 4729 | J71: 37676 | K71: 37665 | L71: 18509 | M71: 52728 | N71: 40436 | O71: 19878 | R71: 3 | S71: 422 | T71: 40858
A72: 2014Novembro | B72: 2014 | C72: Novembro | D72: 669 | E72: 4117 | F72: 83096 | G72: 79111 | H72: 4538 | I72: 3830 | J72: 40463 | K72: 40448 | L72: 19178 | M72: 56845 | N72: 44974 | O72: 23708 | R72: 68 | S72: 490 | T72: 45464
A73: 2014Dezembro | B73: 2014 | C73: Dezembro | D73: 555 | E73: 2840 | F73: 77078 | G73: 72977 | H73: 4325 | I73: 2849 | J73: 44255 | K73: 44232 | L73: 19733 | M73: 59685 | N73: 49299 | O73: 26557 | R73: 1273 | S73: 1763 | T73: 51062 | W73: =SUM(D62:D73) -> 19733 | X73: 59685 | Y73: 1140561 | Z73: 1094453 | AA73: 49299 | AB73: 26557 | AC73: =SUM(J62:J73) -> 270279 | AD73: =SUM(K62:K73) -> 270221
A74: 2013Janeiro | B74: 2013 | C74: Janeiro | D74: 5046 | E74: 4660 | F74: 97846 | G74: 94106 | L74: =D74 -> 5046 | M74: =E74 -> 4660
A75: 2013Fevereiro | B75: 2013 | C75: Fevereiro | D75: 3768 | E75: 4862 | F75: 98157 | G75: 94534 | L75: =L74+D75 -> 8814 | M75: =M74+E75 -> 9522 | W75: TA FOI AJUSTADO, no Portal está 94.534
A76: 2013Março | B76: 2013 | C76: Março | D76: 4410 | E76: 6505 | F76: 97814 | G76: 94109 | L76: 13224 | M76: 16027 | W76: TA FOI AJUSTADO, no Portal está 94.109
A77: 2013Abril | B77: 2013 | C77: Abril | D77: 3953 | E77: 7103 | F77: 97193 | G77: 93581 | L77: 17177 | M77: 23130
A78: 2013Maio | B78: 2013 | C78: Maio | D78: 4538 | E78: 7269 | F78: 97774 | G78: 94220 | L78: 21715 | M78: 30399
A79: 2013Junho | B79: 2013 | C79: Junho | D79: 3691 | E79: 6477 | F79: 97866 | G79: 94291 | L79: 25406 | M79: 36876
A80: 2013Julho | B80: 2013 | C80: Julho | D80: 6117 | E80: 6848 | F80: 99401 | G80: 95774 | L80: 31523 | M80: 43724
A81: 2013Agosto | B81: 2013 | C81: Agosto | D81: 6703 | E81: 7651 | F81: 101525 | G81: 97754 | L81: 38226 | M81: 51375
A82: 2013Setembro | B82: 2013 | C82: Setembro | D82: 7245 | E82: 7173 | F82: 104414 | G82: 100491 | L82: 45471 | M82: 58548
A83: 2013Outubro | B83: 2013 | C83: Outubro | D83: 6410 | E83: 9079 | F83: 105963 | G83: 102278 | L83: 51881 | M83: 67627
A84: 2013Novembro | B84: 2013 | C84: Novembro | D84: 5031 | E84: 7656 | F84: 107690 | G84: 104040 | L84: 56912 | M84: 75283
A85: 2013Dezembro | B85: 2013 | C85: Dezembro | D85: 4248 | E85: 6591 | F85: 108814 | G85: 105131 | H85: 308 | J85: 308 | K85: 308 | L85: 61160 | M85: 81874 | N85: =H85 -> 308 | T85: =N85+Q85+S85 -> 308
A86: 2012Janeiro | B86: 2012 | C86: Janeiro | D86: 3979 | E86: 3750 | F86: 98544 | G86: 94955 | L86: =D86 -> 3979 | M86: =E86 -> 3750
A87: 2012Fevereiro | B87: 2012 | C87: Fevereiro | D87: 2872 | E87: 6007 | F87: 96739 | G87: 93286 | L87: =L86+D87 -> 6851 | M87: =M86+E87 -> 9757
A88: 2012Março | B88: 2012 | C88: Março | D88: 4312 | E88: 7586 | F88: 95266 | G88: 91840 | L88: 11163 | M88: 17343
A89: 2012Abril | B89: 2012 | C89: Abril | D89: 3408 | E89: 6790 | F89: 94420 | G89: 91048 | L89: 14571 | M89: 24133
A90: 2012Maio | B90: 2012 | C90: Maio | D90: 4426 | E90: 9561 | F90: 94705 | G90: 91371 | L90: 18997 | M90: 33694
A91: 2012Junho | B91: 2012 | C91: Junho | D91: 3612 | E91: 6695 | F91: 94066 | G91: 90731 | L91: 22609 | M91: 40389
A92: 2012Julho | B92: 2012 | C92: Julho | D92: 4888 | E92: 6956 | F92: 93938 | G92: 90372 | L92: 27497 | M92: 47345
A93: 2012Agosto | B93: 2012 | C93: Agosto | D93: 6044 | E93: 9410 | F93: 93922 | G93: 90416 | L93: 33541 | M93: 56755
A94: 2012Setembro | B94: 2012 | C94: Setembro | D94: 4510 | E94: 6783 | F94: 94091 | G94: 90589 | L94: 38051 | M94: 63538
A95: 2012Outubro | B95: 2012 | C95: Outubro | D95: 5539 | E95: 7451 | F95: 93776 | G95: 90529 | L95: 43590 | M95: 70989
A96: 2012Novembro | B96: 2012 | C96: Novembro | D96: 5432 | E96: 5774 | F96: 95294 | G96: 91739 | L96: 49022 | M96: 76763
A97: 2012Dezembro | B97: 2012 | C97: Dezembro | D97: 4313 | E97: 4532 | F97: 96397 | G97: 92676 | L97: 53335 | M97: 81295
A98: 2011Janeiro | B98: 2011 | C98: Janeiro | D98: 5162 | E98: 2700 | F98: 98919 | G98: 94563 | L98: =D98 -> 5162 | M98: =E98 -> 2700
A99: 2011Fevereiro | B99: 2011 | C99: Fevereiro | D99: 4193 | E99: 6633 | F99: 98202 | G99: 93766 | L99: =L98+D99 -> 9355 | M99: =M98+E99 -> 9333
A100: 2011Março | B100: 2011 | C100: Março | D100: 3156 | E100: 7409 | F100: 97824 | G100: 93026 | L100: 12511 | M100: 16742
A101: 2011Abril | B101: 2011 | C101: Abril | D101: 3842 | E101: 5361 | F101: 98030 | G101: 92911 | L101: 16353 | M101: 22103
A102: 2011Maio | B102: 2011 | C102: Maio | D102: 4433 | E102: 7466 | F102: 97951 | G102: 92529 | L102: 20786 | M102: 29569
A103: 2011Junho | B103: 2011 | C103: Junho | D103: 4239 | E103: 7325 | F103: 96580 | G103: 93006 | L103: 25025 | M103: 36894
A104: 2011Julho | B104: 2011 | C104: Julho | D104: 4344 | E104: 7627 | F104: 97234 | G104: 93779 | L104: 29369 | M104: 44521
A105: 2011Agosto | B105: 2011 | C105: Agosto | D105: 4751 | E105: 7652 | F105: 96841 | G105: 93857 | L105: 34120 | M105: 52173
A106: 2011Setembro | B106: 2011 | C106: Setembro | D106: 5629 | E106: 7096 | F106: 97744 | G106: 94437 | L106: 39749 | M106: 59269
A107: 2011Outubro | B107: 2011 | C107: Outubro | D107: 4472 | E107: 7078 | F107: 97344 | G107: 94315 | L107: 44221 | M107: 66347
A108: 2011Novembro | B108: 2011 | C108: Novembro | D108: 4790 | E108: 7654 | F108: 96978 | G108: 93435 | L108: 49011 | M108: 74001
A109: 2011Dezembro | B109: 2011 | C109: Dezembro | D109: 3232 | E109: 5118 | F109: 97050 | G109: 93519 | L109: 52243 | M109: 79119
A110: 2010Janeiro | B110: 2010 | C110: Janeiro | D110: 3432 | E110: 2293 | F110: 91617 | G110: 90244 | L110: =D110 -> 3432 | M110: =E110 -> 2293
A111: 2010Fevereiro | B111: 2010 | C111: Fevereiro | D111: 3222 | E111: 4066 | F111: 91577 | G111: 90208 | L111: =L110+D111 -> 6654 | M111: =M110+E111 -> 6359
A112: 2010Março | B112: 2010 | C112: Março | D112: 4120 | E112: 7558 | F112: 91773 | G112: 90314 | L112: 10774 | M112: 13917
A113: 2010Abril | B113: 2010 | C113: Abril | D113: 3773 | E113: 6013 | F113: 92131 | G113: 90667 | L113: 14547 | M113: 19930
A114: 2010Maio | B114: 2010 | C114: Maio | D114: 3902 | E114: 7352 | F114: 92448 | G114: 90894 | L114: 18449 | M114: 27282
A115: 2010Junho | B115: 2010 | C115: Junho | D115: 4471 | E115: 6788 | F115: 92914 | G115: 91241 | L115: 22920 | M115: 34070
A116: 2010Julho | B116: 2010 | C116: Julho | D116: 4838 | E116: 3639 | F116: 93093 | G116: 91562 | L116: 27758 | M116: 37709
A117: 2010Agosto | B117: 2010 | C117: Agosto | D117: 5316 | E117: 7922 | F117: 94059 | G117: 92584 | L117: 33074 | M117: 45631
A118: 2010Setembro | B118: 2010 | C118: Setembro | D118: 4993 | E118: 6532 | F118: 94108 | G118: 92508 | L118: 38067 | M118: 52163
A119: 2010Outubro | B119: 2010 | C119: Outubro | D119: 4656 | E119: 6127 | F119: 95569 | G119: 93791 | L119: 42723 | M119: 58290
A120: 2010Novembro | B120: 2010 | C120: Novembro | D120: 4312 | E120: 6364 | F120: 95609 | G120: 93536 | L120: 47035 | M120: 64654
A121: 2010Dezembro | B121: 2010 | C121: Dezembro | D121: 3605 | E121: 4671 | F121: 96543 | G121: 92589 | L121: 50640 | M121: 69325
A122: 2009Janeiro | B122: 2009 | C122: Janeiro | D122: 3616 | E122: 2349 | F122: 94001 | G122: 93360 | L122: =D122 -> 3616 | M122: =E122 -> 2349
A123: 2009Fevereiro | B123: 2009 | C123: Fevereiro | D123: 2850 | E123: 4237 | F123: 92847 | G123: 92139 | L123: =L122+D123 -> 6466 | M123: =M122+E123 -> 6586
A124: 2009Março | B124: 2009 | C124: Março | D124: 4929 | E124: 8226 | F124: 91490 | G124: 90610 | L124: 11395 | M124: 14812
A125: 2009Abril | B125: 2009 | C125: Abril | D125: 3731 | E125: 5359 | F125: 91560 | G125: 90619 | L125: 15126 | M125: 20171
A126: 2009Maio | B126: 2009 | C126: Maio | D126: 3766 | E126: 5426 | F126: 91528 | G126: 90550 | L126: 18892 | M126: 25597
A127: =B127&C127 -> 2009Junho | B127: 2009 | C127: Junho | D127: 4367 | E127: 8137 | F127: 92029 | G127: 90986 | L127: 23259 | M127: 33734
A128: 2009Julho | B128: 2009 | C128: Julho | D128: 4742 | E128: 4809 | F128: 91865 | G128: 90703 | L128: 28001 | M128: 38543
A129: 2009Agosto | B129: 2009 | C129: Agosto | D129: 4408 | E129: 7437 | F129: 92444 | G129: 91293 | L129: 32409 | M129: 45980
A130: 2009Setembro | B130: 2009 | C130: Setembro | D130: 5090 | E130: 7628 | F130: 93686 | G130: 92487 | L130: 37499 | M130: 53608
A131: 2009Outubro | B131: 2009 | C131: Outubro | D131: 4529 | E131: 7447 | F131: 93378 | G131: 92171 | L131: 42028 | M131: 61055
A132: 2009Novembro | B132: 2009 | C132: Novembro | D132: 3998 | E132: 7095 | F132: 91737 | G132: 90470 | L132: 46026 | M132: 68150
A133: 2009Dezembro | B133: 2009 | C133: Dezembro | D133: 2698 | E133: 4850 | F133: 90849 | G133: 89584 | L133: 48724 | M133: 73000
A134: 2008Janeiro | B134: 2008 | C134: Janeiro | D134: 3221 | E134: 3004 | F134: 100303 | G134: 100226 | L134: =D134 -> 3221 | M134: =E134 -> 3004
A135: 2008Fevereiro | B135: 2008 | C135: Fevereiro | D135: 3579 | E135: 4260 | F135: 101150 | G135: 101053 | L135: =L134+D135 -> 6800 | M135: =M134+E135 -> 7264
A136: 2008Março | B136: 2008 | C136: Março | D136: 3649 | E136: 5347 | F136: 100935 | G136: 100826 | L136: 10449 | M136: 12611
A137: 2008Abril | B137: 2008 | C137: Abril | D137: 3472 | E137: 6157 | F137: 99458 | G137: 99320 | L137: 13921 | M137: 18768
A138: 2008Maio | B138: 2008 | C138: Maio | D138: 4332 | E138: 6822 | F138: 97363 | G138: 97166 | L138: 18253 | M138: 25590
A139: 2008Junho | B139: 2008 | C139: Junho | D139: 4315 | E139: 6700 | F139: 95492 | G139: 95272 | L139: 22568 | M139: 32290
A140: 2008Julho | B140: 2008 | C140: Julho | D140: 4093 | E140: 5700 | F140: 94943 | G140: 94685 | L140: 26661 | M140: 37990
A141: 2008Agosto | B141: 2008 | C141: Agosto | D141: 3904 | E141: 6231 | F141: 94529 | G141: 94253 | L141: 30565 | M141: 44221
A142: 2008Setembro | B142: 2008 | C142: Setembro | D142: 4913 | E142: 5933 | F142: 93233 | G142: 92897 | L142: 35478 | M142: 50154
A143: 2008Outubro | B143: 2008 | C143: Outubro | D143: 4986 | E143: 6315 | F143: 93475 | G143: 93009 | L143: 40464 | M143: 56469
A144: 2008Novembro | B144: 2008 | C144: Novembro | D144: 4312 | E144: 6674 | F144: 93686 | G144: 93175 | L144: 44776 | M144: 63143
A145: 2008Dezembro | B145: 2008 | C145: Dezembro | D145: 3130 | E145: 5262 | F145: 93504 | G145: 92985 | L145: 47906 | M145: 68405
A146: 2007Janeiro | B146: 2007 | C146: Janeiro | D146: 3347 | E146: 2604 | F146: 105992 | G146: 105884 | L146: =D146 -> 3347 | M146: =E146 -> 2604
A147: 2007Fevereiro | B147: 2007 | C147: Fevereiro | D147: 3302 | E147: 3870 | F147: 105620 | G147: 105511 | L147: =L146+D147 -> 6649 | M147: =M146+E147 -> 6474
A148: 2007Março | B148: 2007 | C148: Março | D148: 3711 | E148: 6378 | F148: 104738 | G148: 104655 | L148: 10360 | M148: 12852
A149: 2007Abril | B149: 2007 | C149: Abril | D149: 2890 | E149: 5511 | F149: 104264 | G149: 104187 | L149: 13250 | M149: 18363
A150: 2007Maio | B150: 2007 | C150: Maio | D150: 3919 | E150: 6911 | F150: 103043 | G150: 102969 | L150: 17169 | M150: 25274
A151: 2007Junho | B151: 2007 | C151: Junho | D151: 3560 | E151: 5447 | F151: 103002 | G151: 102933 | L151: 20729 | M151: 30721
A152: 2007Julho | B152: 2007 | C152: Julho | D152: 3641 | E152: 4990 | F152: 102195 | G152: 102140 | L152: 24370 | M152: 35711
A153: 2007Agosto | B153: 2007 | C153: Agosto | D153: 4054 | E153: 6425 | F153: 100590 | G153: 100525 | L153: 28424 | M153: 42136
A154: 2007Setembro | B154: 2007 | C154: Setembro | D154: 3117 | E154: 5548 | F154: 100208 | G154: 100155 | L154: 31541 | M154: 47684
A155: 2007Outubro | B155: 2007 | C155: Outubro | D155: 4186 | E155: 6037 | F155: 100458 | G155: 100401 | L155: 35727 | M155: 53721
A156: 2007Novembro | B156: 2007 | C156: Novembro | D156: 4196 | E156: 5601 | F156: 100428 | G156: 100362 | L156: 39923 | M156: 59322
A157: 2007Dezembro | B157: 2007 | C157: Dezembro | D157: 2471 | E157: 4490 | F157: 99861 | G157: 99790 | L157: 42394 | M157: 63812
A158: 2006Janeiro | B158: 2006 | C158: Janeiro | D158: 2150 | E158: 2924 | F158: 116262 | G158: 116196 | L158: =D158 -> 2150 | M158: =E158 -> 2924
A159: 2006Fevereiro | B159: 2006 | C159: Fevereiro | D159: 2426 | E159: 3512 | F159: 115569 | G159: 115503 | L159: =L158+D159 -> 4576 | M159: =M158+E159 -> 6436
A160: 2006Março | B160: 2006 | C160: Março | D160: 3599 | E160: 5206 | F160: 115185 | G160: 115123 | L160: 8175 | M160: 11642
A161: 2006Abril | B161: 2006 | C161: Abril | D161: 2464 | E161: 4315 | F161: 114234 | G161: 114171 | L161: 10639 | M161: 15957
A162: 2006Maio | B162: 2006 | C162: Maio | D162: 3374 | E162: 6783 | F162: 113317 | G162: 113259 | L162: 14013 | M162: 22740
A163: 2006Junho | B163: 2006 | C163: Junho | D163: 2535 | E163: 5359 | F163: 111952 | G163: 111898 | L163: 16548 | M163: 28099
A164: 2006Julho | B164: 2006 | C164: Julho | D164: 3457 | E164: 5384 | F164: 110971 | G164: 110922 | L164: 20005 | M164: 33483
A165: 2006Agosto | B165: 2006 | C165: Agosto | D165: 3785 | E165: 6756 | F165: 109875 | G165: 109790 | L165: 23790 | M165: 40239
A166: 2006Setembro | B166: 2006 | C166: Setembro | D166: 3669 | E166: 5693 | F166: 107192 | G166: 107092 | L166: 27459 | M166: 45932
A167: 2006Outubro | B167: 2006 | C167: Outubro | D167: 4080 | E167: 6046 | F167: 106396 | G167: 106282 | L167: 31539 | M167: 51978 | W167: diferença
A168: 2006Novembro | B168: 2006 | C168: Novembro | D168: 3718 | E168: 5007 | F168: 105641 | G168: 105533 | L168: 35257 | M168: 56985 | W168: =F168-G168 -> 108
A169: 2006Dezembro | B169: 2006 | C169: Dezembro | D169: 2706 | E169: 4146 | F169: 105290 | G169: 105185 | L169: 37963 | M169: 61131 | W169: =F169-G169 -> 105
A170: 2005Dezembro | B170: 2005 | C170: Dezembro | D170: 2277 | E170: 3204 | F170: 115794 | G170: =F170-106 -> 115688 | W170: =F170-G170 -> 106 | X170: TRAM estava 115.796 até 01/04/2014
A171: 2005Total-Dez | B171: 2005 | C171: Total-Dez | D171: =34979-D170 -> 32702 | E171: =47264-E170 -> 44060
C186: 2016 | D186: =SUM(D38:D$169) -> 415264 | E186: =SUM(E38:E$169) -> 669823 | F186: =SUM(F38:F$169) -> 11606375 | G186: =SUM(G38:G$169) -> 11337325 | H186: =SUM(H38:H$169) -> 146038 | I186: =SUM(I38:I$169) -> 123772 | J186: =SUM(J38:J$169) -> 2004099 | K186: =SUM(K38:K$169) -> 1932821 | L186: =SUM(L38:L$169) -> 2645048 | M186: =SUM(M38:M$169) -> 4242319 | N186: =SUM(N38:N$169) -> 919186 | O186: =SUM(O38:O$169) -> 714644 | P186: =SUM(P38:P$169) -> 7796 | Q186: =SUM(Q38:Q$169) -> 64500 | R186: =SUM(R38:R$169) -> 5993 | S186: =SUM(S38:S$169) -> 50790 | T186: =SUM(T38:T$169) -> 1034476
C188: 2017 | D188: =SUM(D26:D$169) -> 415264 | E188: =SUM(E26:E$169) -> 677427 | F188: =SUM(F26:F$169) -> 11741440 | G188: =SUM(G26:G$169) -> 11463733 | H188: =SUM(H26:H$169) -> 188046 | I188: =SUM(I26:I$169) -> 181638 | J188: =SUM(J26:J$169) -> 2966038 | K188: =SUM(K26:K$169) -> 2832957 | L188: =SUM(L26:L$169) -> 2645048 | M188: =SUM(M26:M$169) -> 4289091 | N188: =SUM(N26:N$169) -> 1184752 | O188: =SUM(O26:O$169) -> 1075151 | P188: =SUM(P26:P$169) -> 8023 | Q188: =SUM(Q26:Q$169) -> 65579 | R188: =SUM(R26:R$169) -> 6719 | S188: =SUM(S26:S$169) -> 53314 | T188: =SUM(T26:T$169) -> 1303645
D190: s | E190: ss | F190: hs | G190: hs | H190: a | I190: aa | J190: ha | K190: ha | L190: ss | M190: ss | N190: sa | O190: sa | P190: aaa | Q190: sa | R190: aaaa | S190: sa | T190: sa
C191: .

Sheet DadosTD (hidden)
A1: Ano | B1: Mês | C1: Base | D1: A | E1: M | F1: V | G1: Julg | H1: TRAM | I1: TA
A2: 2019 | B2: Janeiro | C2: Eproc | D2: 1464 | E2: 0 | F2: 0 | G2: 86 | H2: 5594 | I2: 5587
A3: 2019 | B3: Fevereiro | C3: Eproc | D3: 2070 | E3: 0 | F3: 0 | G3: 368 | H3: 7517 | I3: 7502
A4: 2019 | B4: Março | C4: Eproc | D4: 1711 | E4: 0 | F4: 0 | G4: 327 | H4: 9051 | I4: 9035
A5: 2019 | B5: Abril | C5: Eproc | D5: 2261 | E5: 0 | F5: 0 | G5: 540 | H5: 11181 | I5: 11162
A6: 2019 | B6: Maio | C6: Eproc | D6: 3218 | E6: 0 | F6: 0 | G6: 601 | H6: 13949 | I6: 13919
A7: 2019 | B7: Junho | C7: Eproc | D7: 2876 | E7: 0 | F7: 0 | G7: 822 | H7: 16463 | I7: 16417
A8: 2019 | B8: Julho | C8: Eproc | D8: 3792 | E8: 0 | F8: 0 | G8: 1590 | H8: 19629 | I8: 19571
A9: 2019 | B9: Agosto | C9: Eproc | D9: 3935 | E9: 0 | F9: 0 | G9: 1757 | H9: 22759 | I9: 22681
A10: 2019 | B10: Setembro | C10: Eproc | D10: 4039 | E10: 0 | F10: 0 | G10: 2270 | H10: 25722 | I10: 25586
A11: 2019 | B11: Outubro | C11: Eproc | D11: 4139 | E11: 0 | F11: 0 | G11: 2992 | H11: 28482 | I11: 28257
A12: 2019 | B12: Novembro | C12: Eproc | D12: 3517 | E12: 2 | F12: 0 | G12: 2839 | H12: 30663 | I12: 30373
A13: 2019 | B13: Dezembro | C13: Eproc | D13: 2598 | E13: 0 | F13: 0 | G13: 2907 | H13: 31489 | I13: 31131
A14: 2019 | B14: Janeiro | C14: Apolo | D14: 2228 | E14: 0 | F14: 7 | G14: 2215 | H14: 77634 | I14: 71367
A15: 2019 | B15: Fevereiro | C15: Apolo | D15: 1905 | E15: 0 | F15: 23 | G15: 6510 | H15: 75155 | I15: 68481
A16: 2019 | B16: Março | C16: Apolo | D16: 1203 | E16: 0 | F16: 15 | G16: 3667 | H16: 72009 | I16: 64860
A17: 2019 | B17: Abril | C17: Apolo | D17: 1292 | E17: 0 | F17: 15 | G17: 4327 | H17: 71510 | I17: 64333
A18: 2019 | B18: Maio | C18: Apolo | D18: 1391 | E18: 0 | F18: 15 | G18: 5074 | H18: 68646 | I18: 61176
A19: 2019 | B19: Junho | C19: Apolo | D19: 840 | E19: 0 | F19: 9 | G19: 5255 | H19: 66611 | I19: 58992
A20: 2019 | B20: Julho | C20: Apolo | D20: 913 | E20: 0 | F20: 11 | G20: 5012 | H20: 64133 | I20: 56028
A21: 2019 | B21: Agosto | C21: Apolo | D21: 732 | E21: 0 | F21: 23 | G21: 4110 | H21: 61212 | I21: 52661
A22: 2019 | B22: Setembro | C22: Apolo | D22: 558 | E22: 0 | F22: 13 | G22: 4327 | H22: 58439 | I22: 49535
A23: 2019 | B23: Outubro | C23: Apolo | D23: 552 | E23: 0 | F23: 14 | G23: 3543 | H23: 55479 | I23: 46503
A24: 2019 | B24: Novembro | C24: Apolo | D24: 357 | E24: 0 | F24: 17 | G24: 3568 | H24: 53248 | I24: 43705
A25: 2019 | B25: Dezembro | C25: Apolo | D25: 282 | E25: 0 | F25: 10 | G25: 3346 | H25: 51732 | I25: 42129
A26: 2018 | B26: Abril | C26: Eproc | D26: 0 | E26: 0 | G26: 0 | H26: 0 | I26: 0
A27: 2018 | B27: Maio | C27: Eproc | D27: 26 | E27: 0 | G27: 0 | H27: 26 | I27: 26
A28: 2018 | B28: Junho | C28: Eproc | D28: 102 | E28: 0 | G28: 0 | H28: 128 | I28: 128
A29: 2018 | B29: Julho | C29: Eproc | D29: 221 | E29: 0 | G29: 2 | H29: 349 | I29: 349
A30: 2018 | B30: Agosto | C30: Eproc | D30: 441 | E30: 0 | G30: 12 | H30: 787 | I30: 787
A31: 2018 | B31: Setembro | C31: Eproc | D31: 450 | E31: 0 | G31: 41 | H31: 1226 | I31: 1225
A32: 2018 | B32: Outubro | C32: Eproc | D32: 1110 | E32: 0 | G32: 77 | H32: 2315 | I32: 2312
A33: 2018 | B33: Novembro | C33: Eproc | D33: 638 | E33: 0 | G33: 94 | H33: 2931 | I33: 2927
A34: 2018 | B34: Dezembro | C34: Eproc | D34: 1256 | E34: 0 | G34: 254 | H34: 4154 | I34: 4149
A35: 2018 | B35: Janeiro | C35: Apolo | D35: 2629 | E35: 4 | F35: 327 | G35: 2110 | H35: 81555 | I35: 77335
A36: 2018 | B36: Fevereiro | C36: Apolo | D36: 2845 | E36: 35 | F36: 98 | G36: 4617 | H36: 81439 | I36: 77175
A37: 2018 | B37: Março | C37: Apolo | D37: 2732 | E37: 7823 | F37: 38 | G37: 5330 | H37: 87839 | I37: 83086
A38: 2018 | B38: Abril | C38: Apolo | D38: 3126 | E38: 103 | F38: 8 | G38: 5785 | H38: 86634 | I38: 81788
A39: 2018 | B39: Maio | C39: Apolo | D39: 3430 | E39: 12 | F39: 2 | G39: 6809 | H39: 85050 | I39: 80433
A40: 2018 | B40: Junho | C40: Apolo | D40: 2937 | E40: 5 | F40: 3 | G40: 5708 | H40: 83934 | I40: 79461
A41: 2018 | B41: Julho | C41: Apolo | D41: 3696 | E41: 2 | F41: 3 | G41: 5797 | H41: 82900 | I41: 78255
A42: 2018 | B42: Agosto | C42: Apolo | D42: 3792 | E42: 0 | F42: 1 | G42: 6060 | H42: 82869 | I42: 78167
A43: 2018 | B43: Setembro | C43: Apolo | D43: 2809 | E43: 0 | F43: 13 | G43: 6273 | H43: 80805 | I43: 75916
A44: 2018 | B44: Outubro | C44: Apolo | D44: 3041 | E44: 0 | F44: 13 | G44: 6292 | H44: 79116 | I44: 73907
A45: 2018 | B45: Novembro | C45: Apolo | D45: 3745 | E45: 0 | F45: 20 | G45: 5394 | H45: 79405 | I45: 73934
A46: 2018 | B46: Dezembro | C46: Apolo | D46: 2099 | E46: 0 | F46: 14 | G46: 4177 | H46: 77849 | I46: 71773
A47: 2018 | B47: Janeiro | C47: Siapro | D47: 0 | G47: 360 | H47: 8523 | I47: 8045
A48: 2018 | B48: Fevereiro | C48: Siapro | D48: 0 | G48: 755 | H48: 8115 | I48: 7646
A49: 2018 | B49: Março | C49: Siapro | D49: 1 | G49: 306 | H49: 160 | I49: 160
A50: 2017 | B50: Janeiro | C50: Apolo | D50: 2164 | E50: 9 | F50: 6 | G50: 1153 | H50: 80666 | I50: 75463
A51: 2017 | B51: Fevereiro | C51: Apolo | D51: 2887 | E51: 15 | F51: 67 | G51: 5075 | H51: 79927 | I51: 74573
A52: 2017 | B52: Março | C52: Apolo | D52: 3892 | E52: 10 | F52: 24 | G52: 5110 | H52: 78756 | I52: 73274
A53: 2017 | B53: Abril | C53: Apolo | D53: 3022 | E53: 1 | F53: 1 | G53: 4481 | H53: 79139 | I53: 73830
A54: 2017 | B54: Maio | C54: Apolo | D54: 4262 | E54: 16 | F54: 27 | G54: 5892 | H54: 79110 | I54: 73710
A55: 2017 | B55: Junho | C55: Apolo | D55: 3635 | E55: 16 | F55: 21 | G55: 5491 | H55: 79461 | I55: 74030
A56: 2017 | B56: Julho | C56: Apolo | D56: 3913 | E56: 21 | F56: 11 | G56: 5533 | H56: 79894 | I56: 74403
A57: 2017 | B57: Agosto | C57: Apolo | D57: 4248 | E57: 6 | F57: 50 | G57: 6063 | H57: 80079 | I57: 74548
A58: 2017 | B58: Setembro | C58: Apolo | D58: 3957 | E58: 44 | F58: 2 | G58: 5401 | H58: 80978 | I58: 75369
A59: 2017 | B59: Outubro | C59: Apolo | D59: 4194 | E59: 7 | F59: 3 | G59: 5180 | H59: 81450 | I59: 77255
A60: 2017 | B60: Novembro | C60: Apolo | D60: 3220 | E60: 22 | F60: 256 | G60: 4700 | H60: 81954 | I60: 77604
A61: 2017 | B61: Dezembro | C61: Apolo | D61: 2614 | E61: 60 | F61: 258 | G61: 3787 | H61: 80525 | I61: 76077
A62: 2017 | B62: Janeiro | C62: Siapro | D62: 0 | G62: 180 | H62: 16135 | I62: 14955
A63: 2017 | B63: Fevereiro | C63: Siapro | D63: 0 | G63: 475 | H63: 15152 | I63: 14005
A64: 2017 | B64: Março | C64: Siapro | D64: 0 | G64: 735 | H64: 12778 | I64: 11842
A65: 2017 | B65: Abril | C65: Siapro | D65: 0 | G65: 700 | H65: 12105 | I65: 11260
A66: 2017 | B66: Maio | C66: Siapro | D66: 0 | G66: 733 | H66: 11377 | I66: 10556
A67: 2017 | B67: Junho | C67: Siapro | D67: 0 | G67: 668 | H67: 10766 | I67: 10101
A68: 2017 | B68: Julho | C68: Siapro | D68: 0 | G68: 663 | H68: 10262 | I68: 9643
A69: 2017 | B69: Agosto | C69: Siapro | D69: 0 | G69: 890 | H69: 9752 | I69: 9251
A70: 2017 | B70: Setembro | C70: Siapro | D70: 0 | G70: 632 | H70: 9373 | I70: 8868
A71: 2017 | B71: Outubro | C71: Siapro | D71: 0 | G71: 803 | H71: 9497 | I71: 9018
A72: 2017 | B72: Novembro | C72: Siapro | D72: 0 | G72: 707 | H72: 9144 | I72: 8663
A73: 2017 | B73: Dezembro | C73: Siapro | D73: 0 | G73: 418 | H73: 8724 | I73: 8246
A74: 2016 | B74: Janeiro | C74: Apolo | D74: 3413 | E74: 10 | F74: 0 | G74: 2946 | H74: 76839 | I74: 73708
A75: 2016 | B75: Fevereiro | C75: Apolo | D75: 3395 | E75: 18 | F75: 9 | G75: 3374 | H75: 78079 | I75: 74939
A76: 2016 | B76: Março | C76: Apolo | D76: 4348 | E76: 39 | F76: 3 | G76: 4527 | H76: 74366 | I76: 71192
A77: 2016 | B77: Abril | C77: Apolo | D77: 4166 | E77: 19 | F77: 11 | G77: 4552 | H77: 76202 | I77: 72981
A78: 2016 | B78: Maio | C78: Apolo | D78: 4050 | E78: 9 | F78: 23 | G78: 3890 | H78: 78084 | I78: 74767
A79: 2016 | B79: Junho | C79: Apolo | D79: 4395 | E79: 17 | F79: 7 | G79: 5403 | H79: 79893 | I79: 76530
A80: 2016 | B80: Julho | C80: Apolo | D80: 4153 | E80: 18 | F80: 1 | G80: 5445 | H80: 81557 | I80: 78182
A81: 2016 | B81: Agosto | C81: Apolo | D81: 2673 | E81: 1 | F81: 2 | G81: 2153 | H81: 82918 | I81: 79442
A82: 2016 | B82: Setembro | C82: Apolo | D82: 4338 | E82: 11 | F82: 6 | G82: 3945 | H82: 83598 | I82: 79818
A83: 2016 | B83: Outubro | C83: Apolo | D83: 3755 | E83: 27 | F83: 9 | G83: 5822 | H83: 83662 | I83: 78932
A84: 2016 | B84: Novembro | C84: Apolo | D84: 3530 | E84: 25 | F84: 13 | G84: 3695 | H84: 81676 | I84: 76704
A85: 2016 | B85: Dezembro | C85: Apolo | D85: 2597 | E85: 14 | F85: 1 | G85: 4306 | H85: 80830 | I85: 75705
A86: 2016 | B86: Janeiro | C86: Siapro | D86: 0 | G86: 825 | H86: 37599 | I86: 35000
A87: 2016 | B87: Fevereiro | C87: Siapro | D87: 0 | G87: 983 | H87: 36419 | I87: 33459
A88: 2016 | B88: Março | C88: Siapro | D88: 2 | G88: 1296 | H88: 35215 | I88: 32465
A89: 2016 | B89: Abril | C89: Siapro | D89: 0 | G89: 1034 | H89: 32994 | I89: 30402
A90: 2016 | B90: Maio | C90: Siapro | D90: 0 | G90: 909 | H90: 29689 | I90: 27149
A91: 2016 | B91: Junho | C91: Siapro | D91: 0 | G91: 722 | H91: 27798 | I91: 25575
A92: 2016 | B92: Julho | C92: Siapro | D92: 0 | G92: 713 | H92: 26931 | I92: 24718
A93: 2016 | B93: Agosto | C93: Siapro | D93: 0 | G93: 292 | H93: 25788 | I93: 23697
A94: 2016 | B94: Setembro | C94: Siapro | D94: 0 | G94: 762 | H94: 22327 | I94: 20717
A95: 2016 | B95: Outubro | C95: Siapro | D95: 0 | G95: 757 | H95: 20445 | I95: 18862
A96: 2016 | B96: Novembro | C96: Siapro | D96: 0 | G96: 814 | H96: 18663 | I96: 17216
A97: 2016 | B97: Dezembro | C97: Siapro | D97: 0 | G97: 577 | H97: 16985 | I97: 15697
A98: 2015 | B98: Janeiro | C98: Apolo | D98: 2803 | F98: 3409 | G98: 2774 | H98: 49003 | I98: 48967
A99: 2015 | B99: Fevereiro | C99: Apolo | D99: 3432 | F99: 76 | G99: 2815 | H99: 50153 | I99: 50103
A100: 2015 | B100: Março | C100: Apolo | D100: 5951 | E100: 60 | F100: 17 | G100: 3805 | H100: 54273 | I100: 54179
A101: 2015 | B101: Abril | C101: Apolo | D101: 4223 | E101: 4329 | F101: 88 | G101: 4150 | H101: 59703 | I101: 57683
A102: 2015 | B102: Maio | C102: Apolo | D102: 5246 | E102: 2270 | F102: 130 | G102: 3553 | H102: 64869 | I102: 61970
A103: 2015 | B103: Junho | C103: Apolo | D103: 5209 | E103: 362 | F103: 247 | G103: 4550 | H103: 67107 | I103: 64128
A104: 2015 | B104: Julho | C104: Apolo | D104: 4921 | E104: 221 | F104: 41 | G104: 4915 | H104: 68642 | I104: 65629
A105: 2015 | B105: Agosto | C105: Apolo | D105: 3778 | E105: 238 | F105: 50 | G105: 3967 | H105: 69072 | I105: 66041
A106: 2015 | B106: Setembro | C106: Apolo | D106: 4012 | E106: 57 | F106: 45 | G106: 4075 | H106: 70376 | I106: 67338
A107: 2015 | B107: Outubro | C107: Apolo | D107: 4745 | E107: 32 | F107: 8 | G107: 4418 | H107: 72864 | I107: 69806
A108: 2015 | B108: Novembro | C108: Apolo | D108: 4365 | E108: 14 | F108: 5 | G108: 4360 | H108: 74381 | I108: 71292
A109: 2015 | B109: Dezembro | C109: Apolo | D109: 2933 | E109: 5 | F109: 29 | G109: 3775 | H109: 75365 | I109: 72256
A110: 2015 | B110: Janeiro | C110: Siapro | D110: 610 | G110: 1630 | H110: 74019 | I110: 69960
A111: 2015 | B111: Fevereiro | C111: Siapro | D111: 503 | G111: 2492 | H111: 72305 | I111: 68291
A112: 2015 | B112: Março | C112: Siapro | D112: 12 | G112: 2749 | H112: 69119 | I112: 67511
A113: 2015 | B113: Abril | C113: Siapro | D113: 13 | G113: 2586 | H113: 62012 | I113: 61073
A114: 2015 | B114: Maio | C114: Siapro | D114: 13 | G114: 2326 | H114: 56600 | I114: 55654
A115: 2015 | B115: Junho | C115: Siapro | D115: 0 | G115: 2094 | H115: 53918 | I115: 52971
A116: 2015 | B116: Julho | C116: Siapro | D116: 1 | G116: 1956 | H116: 51132 | I116: 50055
A117: 2015 | B117: Agosto | C117: Siapro | D117: 1 | G117: 1595 | H117: 48962 | I117: 47250
A118: 2015 | B118: Setembro | C118: Siapro | D118: 0 | G118: 1374 | H118: 46557 | I118: 44498
A119: 2015 | B119: Outubro | C119: Siapro | D119: 1 | G119: 1585 | H119: 43858 | I119: 41471
A120: 2015 | B120: Novembro | C120: Siapro | D120: 6 | G120: 952 | H120: 41779 | I120: 39069
A121: 2015 | B121: Dezembro | C121: Siapro | D121: 4 | G121: 1154 | H121: 39179 | I121: 36665
A122: 2014 | B122: Janeiro | C122: Apolo | D122: 1258 | F122: 1 | G122: 1 | H122: 1567 | I122: 1567
A123: 2014 | B123: Fevereiro | C123: Apolo | D123: 2591 | G123: 67 | H123: 4158 | I123: 4158
A124: 2014 | B124: Março | C124: Apolo | D124: 2136 | G124: 151 | H124: 6294 | I124: 6294
A125: 2014 | B125: Abril | C125: Apolo | D125: 4945 | G125: 536 | H125: 11230 | I125: 11230
A126: 2014 | B126: Maio | C126: Apolo | D126: 4400 | G126: 721 | H126: 15482 | I126: 15482
A127: 2014 | B127: Junho | C127: Apolo | D127: 3306 | F127: 115 | G127: 1607 | H127: 18657 | I127: 18657
A128: 2014 | B128: Julho | C128: Apolo | D128: 5753 | F128: 271 | G128: 3359 | H128: 24466 | I128: 24466
A129: 2014 | B129: Agosto | C129: Apolo | D129: 6870 | F129: 32 | G129: 3543 | H129: 31093 | I129: 31091
A130: 2014 | B130: Setembro | C130: Apolo | D130: 4579 | G130: 5164 | H130: 34938 | I130: 34931
A131: 2014 | B131: Outubro | C131: Apolo | D131: 4598 | F131: 3 | G131: 4729 | H131: 37676 | I131: 37665
A132: 2014 | B132: Novembro | C132: Apolo | D132: 4538 | F132: 68 | G132: 3830 | H132: 40463 | I132: 40448
A133: 2014 | B133: Dezembro | C133: Apolo | D133: 4325 | F133: 1273 | G133: 2849 | H133: 44255 | I133: 44232
A134: 2014 | B134: Janeiro | C134: Siapro | D134: 3152 | G134: 4628 | H134: 108747 | I134: 105267
A135: 2014 | B135: Fevereiro | C135: Siapro | D135: 2562 | G135: 7698 | H135: 107149 | I135: 103719
A136: 2014 | B136: Março | C136: Siapro | D136: 2508 | G136: 5829 | H136: 105188 | I136: 101641
A137: 2014 | B137: Abril | C137: Siapro | D137: 1798 | G137: 5421 | H137: 102976 | I137: 99367
A138: 2014 | B138: Maio | C138: Siapro | D138: 1723 | G138: 5522 | H138: 100335 | I138: 96533
A139: 2014 | B139: Junho | C139: Siapro | D139: 1570 | G139: 4287 | H139: 97366 | I139: 93448
A140: 2014 | B140: Julho | C140: Siapro | D140: 1282 | G140: 5251 | H140: 94078 | I140: 89973
A141: 2014 | B141: Agosto | C141: Siapro | D141: 1312 | G141: 4970 | H141: 91091 | I141: 87015
A142: 2014 | B142: Setembro | C142: Siapro | D142: 1572 | G142: 4552 | H142: 88449 | I142: 84401
A143: 2014 | B143: Outubro | C143: Siapro | D143: 1030 | G143: 4570 | H143: 85008 | I143: 81001
A144: 2014 | B144: Novembro | C144: Siapro | D144: 669 | G144: 4117 | H144: 83096 | I144: 79111
A145: 2014 | B145: Dezembro | C145: Siapro | D145: 555 | G145: 2840 | H145: 77078 | I145: 72977
A146: 2013 | B146: Dezembro | C146: Apolo | D146: 308 | H146: 308 | I146: 308
A147: 2013 | B147: Janeiro | C147: Siapro | D147: 5046 | G147: 4660 | H147: 97846 | I147: 94106
A148: 2013 | B148: Fevereiro | C148: Siapro | D148: 3768 | G148: 4862 | H148: 98157 | I148: 94534
A149: 2013 | B149: Março | C149: Siapro | D149: 4410 | G149: 6505 | H149: 97814 | I149: 94109
A150: 2013 | B150: Abril | C150: Siapro | D150: 3953 | G150: 7103 | H150: 97193 | I150: 93581
A151: 2013 | B151: Maio | C151: Siapro | D151: 4538 | G151: 7269 | H151: 97774 | I151: 94220
A152: 2013 | B152: Junho | C152: Siapro | D152: 3691 | G152: 6477 | H152: 97866 | I152: 94291
A153: 2013 | B153: Julho | C153: Siapro | D153: 6117 | G153: 6848 | H153: 99401 | I153: 95774
A154: 2013 | B154: Agosto | C154: Siapro | D154: 6703 | G154: 7651 | H154: 101525 | I154: 97754
A155: 2013 | B155: Setembro | C155: Siapro | D155: 7245 | G155: 7173 | H155: 104414 | I155: 100491
A156: 2013 | B156: Outubro | C156: Siapro | D156: 6410 | G156: 9079 | H156: 105963 | I156: 102278
A157: 2013 | B157: Novembro | C157: Siapro | D157: 5031 | G157: 7656 | H157: 107690 | I157: 104040
A158: 2013 | B158: Dezembro | C158: Siapro | D158: 4248 | G158: 6591 | H158: 108814 | I158: 105131
A159: 2012 | B159: Janeiro | C159: Siapro | D159: 3979 | G159: 3750 | H159: 98544 | I159: 94955
A160: 2012 | B160: Fevereiro | C160: Siapro | D160: 2872 | G160: 6007 | H160: 96739 | I160: 93286
A161: 2012 | B161: Março | C161: Siapro | D161: 4312 | G161: 7586 | H161: 95266 | I161: 91840
A162: 2012 | B162: Abril | C162: Siapro | D162: 3408 | G162: 6790 | H162: 94420 | I162: 91048
A163: 2012 | B163: Maio | C163: Siapro | D163: 4426 | G163: 9561 | H163: 94705 | I163: 91371
A164: 2012 | B164: Junho | C164: Siapro | D164: 3612 | G164: 6695 | H164: 94066 | I164: 90731
A165: 2012 | B165: Julho | C165: Siapro | D165: 4888 | G165: 6956 | H165: 93938 | I165: 90372
A166: 2012 | B166: Agosto | C166: Siapro | D166: 6044 | G166: 9410 | H166: 93922 | I166: 90416
A167: 2012 | B167: Setembro | C167: Siapro | D167: 4510 | G167: 6783 | H167: 94091 | I167: 90589
A168: 2012 | B168: Outubro | C168: Siapro | D168: 5539 | G168: 7451 | H168: 93776 | I168: 90529
A169: 2012 | B169: Novembro | C169: Siapro | D169: 5432 | G169: 5774 | H169: 95294 | I169: 91739
A170: 2012 | B170: Dezembro | C170: Siapro | D170: 4313 | G170: 4532 | H170: 96397 | I170: 92676
A171: 2011 | B171: Janeiro | C171: Siapro | D171: 5162 | G171: 2700 | H171: 98919 | I171: 94563
A172: 2011 | B172: Fevereiro | C172: Siapro | D172: 4193 | G172: 6633 | H172: 98202 | I172: 93766
A173: 2011 | B173: Março | C173: Siapro | D173: 3156 | G173: 7409 | H173: 97824 | I173: 93026
A174: 2011 | B174: Abril | C174: Siapro | D174: 3842 | G174: 5361 | H174: 98030 | I174: 92911
A175: 2011 | B175: Maio | C175: Siapro | D175: 4433 | G175: 7466 | H175: 97951 | I175: 92529
A176: 2011 | B176: Junho | C176: Siapro | D176: 4239 | G176: 7325 | H176: 96580 | I176: 93006
A177: 2011 | B177: Julho | C177: Siapro | D177: 4344 | G177: 7627 | H177: 97234 | I177: 93779
A178: 2011 | B178: Agosto | C178: Siapro | D178: 4751 | G178: 7652 | H178: 96841 | I178: 93857
A179: 2011 | B179: Setembro | C179: Siapro | D179: 5629 | G179: 7096 | H179: 97744 | I179: 94437
A180: 2011 | B180: Outubro | C180: Siapro | D180: 4472 | G180: 7078 | H180: 97344 | I180: 94315
A181: 2011 | B181: Novembro | C181: Siapro | D181: 4790 | G181: 7654 | H181: 96978 | I181: 93435
A182: 2011 | B182: Dezembro | C182: Siapro | D182: 3232 | G182: 5118 | H182: 97050 | I182: 93519
A183: 2010 | B183: Janeiro | C183: Siapro | D183: 3432 | G183: 2293 | H183: 91617 | I183: 90244
A184: 2010 | B184: Fevereiro | C184: Siapro | D184: 3222 | G184: 4066 | H184: 91577 | I184: 90208
A185: 2010 | B185: Março | C185: Siapro | D185: 4120 | G185: 7558 | H185: 91773 | I185: 90314
A186: 2010 | B186: Abril | C186: Siapro | D186: 3773 | G186: 6013 | H186: 92131 | I186: 90667
A187: 2010 | B187: Maio | C187: Siapro | D187: 3902 | G187: 7352 | H187: 92448 | I187: 90894
A188: 2010 | B188: Junho | C188: Siapro | D188: 4471 | G188: 6788 | H188: 92914 | I188: 91241
A189: 2010 | B189: Julho | C189: Siapro | D189: 4838 | G189: 3639 | H189: 93093 | I189: 91562
A190: 2010 | B190: Agosto | C190: Siapro | D190: 5316 | G190: 7922 | H190: 94059 | I190: 92584
A191: 2010 | B191: Setembro | C191: Siapro | D191: 4993 | G191: 6532 | H191: 94108 | I191: 92508
A192: 2010 | B192: Outubro | C192: Siapro | D192: 4656 | G192: 6127 | H192: 95569 | I192: 93791
A193: 2010 | B193: Novembro | C193: Siapro | D193: 4312 | G193: 6364 | H193: 95609 | I193: 93536
A194: 2010 | B194: Dezembro | C194: Siapro | D194: 3605 | G194: 4671 | H194: 96543 | I194: 92589
A195: 2009 | B195: Janeiro | C195: Siapro | D195: 3616 | G195: 2349 | H195: 94001 | I195: 93360
A196: 2009 | B196: Fevereiro | C196: Siapro | D196: 2850 | G196: 4237 | H196: 92847 | I196: 92139
A197: 2009 | B197: Março | C197: Siapro | D197: 4929 | G197: 8226 | H197: 91490 | I197: 90610
A198: 2009 | B198: Abril | C198: Siapro | D198: 3731 | G198: 5359 | H198: 91560 | I198: 90619
A199: 2009 | B199: Maio | C199: Siapro | D199: 3766 | G199: 5426 | H199: 91528 | I199: 90550
A200: 2009 | B200: Junho | C200: Siapro | D200: 4367 | G200: 8137 | H200: 92029 | I200: 90986
... 42 more rows
